Cogmind - Beta 17 @@@ ROGUE MODE // 2026.08.03 @ 23:51:22 Player: kite Result: Destroyed by P-80 Master with Gamma Rifle Performance ------------- Evolutions (9) 4500 Regions Visited (34) 6800 Robots Destroyed (410) 2050 Value Destroyed (19132) 19132 Prototype IDs (45) 900 Alien Tech Used (7) 1400 Bonus (14072) 14072 TOTAL SCORE: 48854 Bonus ------- Triggered High Security 500 High Alert Combat Kills 2337 Follower Combat Kills 4984 Entered Garrisons 400 Network Hubs Disabled 400 Met Imprinter 300 Was Imprinted 300 Acquired ECA 300 Met Zhirov 300 Built Enhanced Grunts 300 A7 Reached Mainframe 300 Met R17 at Cetus 500 Found Hidden Lab 3000 Used Core Reset Matrix 3000 Friendly Fire -2849 Cogmind --------- Core Integrity 0/1600 Matter 249/300 Energy 100/100 System Corruption 33% Temperature Cool (40) Movement Core (50) Location -1/Command Parts ------- > --- POWER (2) -------- (None) > --- PROPULSION (10) -- (None) > --- UTILITY (9) ------ (None) > --- WEAPON (5) ------- (None) > --- INVENTORY (5) ---- Long-range Sensor Array Deep Network Scanner Terrabomb Core Cannon Peak State ------------ > --- POWER ------------ Quantum Reactor Matter Drive > --- PROPULSION ------- Armored Medium Treads Biometal Medium Treads Advanced Heavy Treads Biometal Heavy Treads Biometal Heavy Treads Advanced Heavy Siege Treads > --- UTILITY ---------- Cargo Storage Unit Advanced Melee Analysis Suite Advanced Actuator Array Zionite Shade Armor AEGIS Remote Shield Hacking Suite Advanced System Shield Improved Dynamic Insulation System > --- WEAPON ----------- Centrium Greatsword Nanosword Sigix Broadsword > --- INVENTORY -------- Light Quantum Reactor Reinforced Quantum Reactor Advanced Heavy Treads Advanced Heavy Siege Treads Advanced Heavy Siege Treads Zionite Biocell Advanced Matter Compressor Advanced Sensor Array Advanced Sensor Array Advanced Point Defense System Advanced Point Defense System Advanced Point Defense System Hacking Suite Experimental Hacking Suite Deep Network Scanner Z-Drone Bay Transdimensional Reconstructor Subatomic Replicator Terrabomb Core Cannon Tactical Quantum Warhead Guided Remote Datajack Impact Mace Force Lance [Rating: 236] Favorites ----------- Power Neutrino Core Engine Improved Ion Engine Power Core Neutrino Core Reactor Reinforced Quantum Reactor Propulsion Armored Treads Treads Armored Treads Leg Titanium Leg Wheel Armored Wheel Utility Cargo Storage Unit Device Advanced Sensor Array Storage Cargo Storage Unit Processor Advanced Melee Analysis Suite Hackware Hacking Suite Protection Centrium Medium Armor Plating Weapon Scythe Energy Gun Zionite Laser-S Ballistic Gun Coil Gun Ballistic Cannon Heavy Flak Cannon Launcher Precision Rocket Launcher Special Weapon Guided Remote Datajack Impact Weapon Impact Mace Slashing Weapon Scythe Piercing Weapon Force Lance Build | -11 -10 -10 -9 -9 -9 -8 -8 -8 -8 -7 -7 -7 -7 -6 -6 -6 -6 -6 -6 -5 -5 -5 -4 -4 -4 -4 -3 -3 -3 -3 -2 -2 -1 -1 ------- Run | Yrd Mat Min Mat Min Exi Min Mat Gar Mat Fac Low Low Zio Pro Fac Ext Cet Arc Hub Fac Gar Fac Fac Upp Upp Zhi Pro Res Arm Lab Res Qua Acc Com Slots Evolved 18 | . . . 2 . . . 2 . . 2 . . . . 2 . . . . 2 . . 2 . . . . 2 . . 2 . 2 . Power 1 | . . . . . . . . . . . . . . . . . . . . . . . . . . . . . . . . . 1 . Propulsion 7 | . . . 2 . . . 1 . . . . . . . 1 . . . . . . . 1 . . . . 1 . . . . 1 . Utility 7 | . . . . . . . 1 . . 1 . . . . 1 . . . . 2 . . 1 . . . . . . . 1 . . . Weapon 3 | . . . . . . . . . . 1 . . . . . . . . . . . . . . . . . 1 . . 1 . . . Parts Attached 332 | 6 6 . 16 . 5 . 10 14 14 17 8 3 4 8 5 23 12 9 10 9 1 2 24 . 4 6 1 12 14 2 7 28 15 37 Power 29 | 1 1 . 1 . . . 2 3 2 2 . 1 . . . 1 3 . 1 . . . 1 . . 2 . . . . . 1 3 4 Engine 7 | 1 1 . . . . . 1 1 2 1 . . . . . . . . . . . . . . . . . . . . . . . . Core 6 | . . . 1 . . . 1 2 . 1 . 1 . . . . . . . . . . . . . . . . . . . . . . Reactor 16 | . . . . . . . . . . . . . . . . 1 3 . 1 . . . 1 . . 2 . . . . . 1 3 4 Propulsion 96 | 2 1 . 8 . 4 . 2 7 8 6 5 . . 6 . 5 3 . . 2 . . 3 . 1 . . 3 5 1 1 9 5 9 Treads 83 | 2 1 . 1 . . . . 7 8 6 5 . . 6 . 5 3 . . 2 . . 3 . 1 . . 3 5 1 1 9 5 9 Leg 5 | . . . 5 . . . . . . . . . . . . . . . . . . . . . . . . . . . . . . . Wheel 8 | . . . 2 . 4 . 2 . . . . . . . . . . . . . . . . . . . . . . . . . . . Hover . | . . . . . . . . . . . . . . . . . . . . . . . . . . . . . . . . . . . Flight . | . . . . . . . . . . . . . . . . . . . . . . . . . . . . . . . . . . . Utility 132 | 1 3 . 3 . 1 . 4 2 3 4 1 1 1 2 5 7 3 7 6 4 1 2 14 . 1 3 1 5 2 1 6 14 7 17 Device 52 | . 1 . . . . . . . . 1 1 . . 1 1 3 2 2 3 . . 2 4 . 1 1 . 1 . 1 4 8 1 14 Storage 17 | 1 2 . 1 . 1 . . 1 1 . . . . 1 . . . 1 . . . . 4 . . . . . 1 . . 3 . . Processor 22 | . . . . . . . . . 1 1 . . . . 2 . . 1 2 3 . . 3 . . . 1 3 1 . 2 . 1 1 Hackware 9 | . . . . . . . 2 . 1 . . . . . 2 . . 1 . 1 . . . . . . . . . . . . 2 . Protection 32 | . . . 2 . . . 2 1 . 2 . 1 1 . . 4 1 2 1 . 1 . 3 . . 2 . 1 . . . 3 3 2 Artifact . | . . . . . . . . . . . . . . . . . . . . . . . . . . . . . . . . . . . Weapon 75 | 2 1 . 4 . . . 2 2 1 5 2 1 3 . . 10 3 2 3 3 . . 6 . 2 1 . 4 7 . . 4 . 7 Energy Gun 10 | . 1 . . . . . . . . . . . . . . 7 1 . . . . . . . 1 . . . . . . . . . Energy Cannon . | . . . . . . . . . . . . . . . . . . . . . . . . . . . . . . . . . . . Ballistic Gun 13 | 2 . . . . . . . . . . . . . . . 1 1 2 1 . . . 3 . . . . . 3 . . . . . Ballistic Cannon 6 | . . . . . . . . . . . . . . . . . . . . 3 . . 1 . . . . . 2 . . . . . Launcher 7 | . . . 1 . . . . 1 . . . . . . . . . . 1 . . . . . . . . 1 2 . . . . 1 Special Weapon 1 | . . . . . . . . . . . . . . . . . . . . . . . . . . . . . . . . . . 1 Impact Weapon 13 | . . . 2 . . . 1 1 1 3 1 . . . . . . . . . . . . . . 1 . 1 . . . 1 . 1 Slashing Weapon 17 | . . . 1 . . . 1 . . 2 1 1 2 . . 2 1 . 1 . . . 1 . 1 . . 1 . . . 2 . . Piercing Weapon 8 | . . . . . . . . . . . . . 1 . . . . . . . . . 1 . . . . 1 . . . 1 . 4 Special Melee Weapon . | . . . . . . . . . . . . . . . . . . . . . . . . . . . . . . . . . . . Unidentified Prototypes 33 | . . . . . . . . . . 1 . . . . . 3 5 1 2 . . . 3 . 1 3 . 1 2 1 . 8 2 . Corrupted Parts 7 | . . . . . . . . . . . . . . 2 . . . 1 1 . . . . . . . . . . . . 2 1 . System Corruption 51 | . . . . . . . . . . . . . . 10 . . . 1 10 . . . . . . . . . . . . 19 11 . Parts Lost 85 | . 2 . 2 . . . 1 9 4 7 8 4 . . . 3 1 . 2 . . . 4 . 4 . . 4 1 . . . . 29 Power 14 | . 1 . . . . . 1 2 2 1 1 . . . . . 1 . . . . . . . . . . 1 . . . . . 4 Propulsion 37 | . . . 2 . . . . 3 2 5 6 1 . . . 2 . . . . . . 3 . 2 . . . . . . . . 11 Utility 21 | . . . . . . . . 3 . . . 2 . . . 1 . . 1 . . . . . 2 . . 3 . . . . . 9 Weapon 13 | . 1 . . . . . . 1 . 1 1 1 . . . . . . 1 . . . 1 . . . . . 1 . . . . 5 Highest Loss Streak 16 | . 2 . 2 . . . 1 5 1 2 6 2 . . . 1 1 . 1 . . . 2 . 2 . . 3 1 . . . . 16 To Critical Strikes . | . . . . . . . . . . . . . . . . . . . . . . . . . . . . . . . . . . . Average Backups 23 | 1 9 14 22 24 21 27 33 28 29 22 17 15 19 22 23 23 21 20 20 20 21 21 21 24 24 26 26 26 24 23 24 25 25 24 Power 1 | . . . 2 1 . 1 . . . . 1 1 2 1 1 1 . 1 1 1 1 1 1 2 2 2 2 1 . . . . . 1 Propulsion 4 | 1 3 6 9 13 11 13 11 8 9 8 . . . 2 4 7 4 5 4 5 4 4 2 2 1 1 1 1 3 5 5 4 3 2 Utility 9 | . 2 3 4 5 4 8 11 9 10 6 7 6 6 8 10 7 7 7 7 6 7 8 8 11 10 12 14 13 9 11 11 11 12 12 Weapon 6 | . 1 4 4 5 4 5 9 10 8 6 7 6 9 8 6 7 7 6 7 7 8 8 8 8 9 9 6 8 9 4 3 4 4 3 Tool/Special . | . . . . . . . . . . . . . . . . . . . . . . . . . . . . . . . . . . . Unused Backups 100 | . 1 1 8 . . . 10 6 10 7 . . . 3 1 5 . . 5 1 . . 3 3 . . . 2 6 1 2 14 1 10 Power 10 | . . . 2 . . . . . . . . . . 1 . . . . . . . . 1 1 . . . . . . 1 2 . 2 Propulsion 21 | . 1 . 5 . . . 5 . . 1 . . . . . 2 . . 1 . . . 1 2 . . . . . . . 3 . . Utility 37 | . . 1 1 . . . 4 4 7 2 . . . . 1 1 . . 1 . . . 1 . . . . . 2 . . 7 . 5 Weapon 26 | . . . . . . . 1 2 3 4 . . . 2 . 2 . . 2 1 . . . . . . . 1 4 . 1 2 . 1 Tool/Special 6 | . . . . . . . . . . . . . . . . . . . 1 . . . . . . . . 1 . 1 . . 1 2 Average Slot Usage (%) 84 | . 87 100 97 100 94 88 86 85 89 98 98 95 91 98 99 99 96 93 92 93 94 94 82 73 67 60 67 67 76 73 75 73 73 73 Engine 1 | . 14 14 . . . . 2 1 6 4 3 . . . . . . . . . . . . . . . . . . . . . . . Core 2 | . . . 10 11 11 11 6 5 2 1 3 7 7 7 6 2 . . . . . . . . . . . . . . . . . . Reactor 2 | . . . . . . . . . . . . . . . . 3 5 6 6 5 5 5 5 5 5 5 5 3 4 4 4 4 6 6 Treads 24 | . 28 28 10 . . . . 30 44 37 37 34 30 36 40 39 36 33 33 29 29 29 22 21 15 15 15 19 24 19 17 19 24 20 Leg 2 | . . . 31 44 29 . . . . . . . . . . . . . . . . . . . . . . . . . . . . . Wheel 2 | . . . . . 13 44 42 13 . . . . . . . . . . . . . . . . . . . . . . . . . . Device 7 | . 2 14 1 . . . . . . 3 6 5 1 5 11 5 17 13 8 11 . 10 8 10 9 9 9 11 8 7 12 13 13 12 Storage 6 | . 14 14 11 11 10 11 9 8 9 7 7 7 7 7 6 6 6 6 6 5 5 5 5 5 5 5 5 4 4 4 4 4 3 3 Processor 7 | . . . . . . . . . . 6 7 7 7 7 12 8 6 6 11 17 23 23 20 10 10 10 10 7 13 13 11 12 10 3 Hackware 1 | . . . . . . . 6 . . 7 7 3 . . . 5 . . . . . . . . . . . . . . . . 1 5 Protection 5 | . . . 9 11 7 . 2 9 8 3 . 4 13 8 1 5 2 5 5 3 11 . 3 5 5 5 5 3 3 4 4 3 . 2 Ballistic Gun 2 | . 27 14 1 . . . . . . . . . . . . . 2 16 17 . . . 2 14 13 . . . . . . . . . Impact Weapon 4 | . . . 17 10 11 11 12 10 10 18 3 2 . 7 6 1 . . . 5 . . 2 . . 2 5 4 1 4 7 4 . . Slashing Weapon 8 | . . . 2 11 11 11 5 4 7 3 18 19 21 15 13 5 2 2 1 11 . . 2 . . 6 9 4 5 9 8 9 11 7 Peak Build Rating 236 | 6 8 8 25 24 24 19 28 28 24 37 43 44 48 60 68 68 98 103 104 101 101 97 138 133 133 125 123 155 159 166 173 208 225 236 Average Rating 103 | 4 6 8 21 24 21 19 25 22 22 29 40 41 45 54 67 64 78 99 99 96 99 93 119 132 125 115 122 149 150 159 164 192 213 222 On Entrance 79 | . 6 8 8 24 24 19 19 28 23 23 37 41 42 46 56 64 55 98 103 91 96 100 93 133 133 124 122 122 144 157 158 166 199 225 Avg Prop Armor Cover (%) 6 | . . . 17 . . . . 7 . . . . . . . . . . . . . . 7 . . . . . 4 . 9 5 5 6 Naked Turns 5 | . . . . . . . . . . . . . . . . . . . . . . . . . . . . . . . . . . 5 Heaviest Build 276 | 14 34 27 95 94 211 211 214 213 160 111 100 112 107 108 110 114 124 127 126 128 134 128 276 195 193 185 190 191 184 184 186 211 227 272 Greatest Support 370 | 40 40 40 80 64 64 48 58 100 100 100 100 100 80 126 136 136 188 188 188 188 180 180 268 268 268 235 235 315 305 305 300 320 352 370 Greatest Overweight (x) 17 | . . . 5 1 17 4 4 8 1 1 1 1 1 1 . . . . . . . . 1 . . . . . . . . . . . Average Overweight (x) . | . . . 1 1 2 4 3 2 . . . . 1 . . . . . . . . . . . . . . . . . . . . . Largest Inventory Capacity 35 | 8 15 15 25 25 35 35 35 35 30 25 25 25 25 25 25 25 25 25 25 25 25 25 30 30 30 30 30 30 30 30 30 30 30 30 Average Capacity 27 | 7 13 15 24 25 28 35 35 31 29 25 25 25 25 25 25 25 25 25 25 25 25 25 25 30 30 30 30 30 30 30 30 30 30 29 Most Carried 35 | 4 15 15 25 25 28 28 35 35 30 25 25 17 21 25 25 25 25 25 25 25 25 25 30 30 30 30 30 30 30 30 30 30 30 30 Average Carried 26 | 1 9 15 23 25 22 28 34 30 29 23 18 16 20 23 24 24 24 24 24 24 24 24 25 29 28 29 30 28 29 29 29 29 29 28 Final Capacity 35 | 8 15 15 25 25 35 35 35 30 25 25 25 25 25 25 25 25 25 25 25 25 25 25 30 30 30 30 30 30 30 30 30 30 30 5 Final Carried 35 | 3 15 15 25 25 28 28 35 30 25 25 17 16 21 25 25 25 25 25 24 25 25 25 30 30 28 30 30 30 29 30 30 30 30 5 Class Distribution -------------------- 26% | Mutant 23% | Hauler-Gladiator 13% | Alien-Gladiator 11% | Hauler-Mutant 4% | Scavenger-Mutant 4% | Hauler-Tank 3% | Scavenger-Tank Dominant Class ---------------- Mutant | -10/Materials Mutant | -10/Mines Mutant | -9/Materials Mutant | -9/Mines Mutant | -9/Exiles Hauler-Mutant | -8/Mines Hauler-Mutant | -8/Materials Hauler-Mutant | -8/Garrison Hauler-Mutant | -8/Materials Scavenger-Mutant | -7/Factory Mutant | -7/Lower Caves Mutant | -7/Lower Caves Mutant | -7/Zion Mutant | -6/Proximity Caves Derelict-Assassin | -6/Factory Messiah-Tank | -6/Extension Scavenger-Skirmisher | -6/Cetus Commander-Skirmisher | -6/Archives Scavenger-Tank | -6/Hub_04(d) Scavenger-Gladiator | -5/Factory Scavenger-Tank | -5/Garrison Scavenger-Skirmisher | -5/Factory Scavenger-Gladiator | -4/Factory Hauler-Tank | -4/Upper Caves Hauler-Tank | -4/Upper Caves Hauler-Gladiator | -4/Zhirov Hauler-Gladiator | -3/Proximity Caves Hauler-Gladiator | -3/Research Hauler-Gladiator | -3/Armory Hauler-Gladiator | -3/Lab Hauler-Gladiator | -2/Research Hauler-Gladiator | -2/Quarantine Alien-Gladiator | -1/Access Alien-Gladiator | -1/Command Resources | -11 -10 -10 -9 -9 -9 -8 -8 -8 -8 -7 -7 -7 -7 -6 -6 -6 -6 -6 -6 -5 -5 -5 -4 -4 -4 -4 -3 -3 -3 -3 -2 -2 -1 -1 ----------- Run | Yrd Mat Min Mat Min Exi Min Mat Gar Mat Fac Low Low Zio Pro Fac Ext Cet Arc Hub Fac Gar Fac Fac Upp Upp Zhi Pro Res Arm Lab Res Qua Acc Com Matter Collected 12912 | 54 496 105 364 72 186 . 205 295 183 210 210 163 203 507 100 295 255 200 639 30 717 384 963 495 362 97 186 619 502 . 572 1313 83 1847 Remotely 617 | . 85 105 79 . . . . . . . . . . . . . . . . . . 119 . 169 . . . . 60 . . . . . Salvage Created 18704 | . 622 105 887 92 . 13 963 663 1041 969 201 909 . 13 216 563 112 278 1440 . 174 202 969 290 627 97 115 1160 285 . 670 1200 . 3828 Parts 845 | . 53 6 35 6 . . 42 39 34 34 8 10 . . 11 22 3 21 74 . 12 9 32 21 21 2 12 58 6 . 26 62 . 186 Haulers Intercepted 16 | . 1 . 2 . . . 4 . 2 2 . . . . . . . . 3 . . . 1 . . . . . . . 1 . . . Recyclers Shooed 2 | . . . . . . . . . . . . . . . . . . . . . . . . . . . . 1 . . 1 . . . Parts Field Recycled . | . . . . . . . . . . . . . . . . . . . . . . . . . . . . . . . . . . . Retrieved Matter . | . . . . . . . . . . . . . . . . . . . . . . . . . . . . . . . . . . . Parts Self-Destructed 110 | . . . . . . . . . . . 7 27 5 12 . . . . . . . . . 21 29 . 9 . . . . . . . Prevented 9 | . . . . . . . . . . . . 2 . 7 . . . . . . . . . . . . . . . . . . . . Parts Restored . | . . . . . . . . . . . . . . . . . . . . . . . . . . . . . . . . . . . Kills | -11 -10 -10 -9 -9 -9 -8 -8 -8 -8 -7 -7 -7 -7 -6 -6 -6 -6 -6 -6 -5 -5 -5 -4 -4 -4 -4 -3 -3 -3 -3 -2 -2 -1 -1 ------- Run | Yrd Mat Min Mat Min Exi Min Mat Gar Mat Fac Low Low Zio Pro Fac Ext Cet Arc Hub Fac Gar Fac Fac Upp Upp Zhi Pro Res Arm Lab Res Qua Acc Com Combat Hostiles Destroyed 300 | . 16 2 20 7 . . 17 20 15 19 5 13 . 1 1 9 1 . 7 . 8 7 14 10 5 . 7 15 7 . 4 17 . 53 Melee 143 | . . . 9 2 . . 11 10 12 10 4 8 . 1 1 1 . . . . . . 2 . . . . 8 2 . 4 13 . 45 Guns 49 | . 16 2 . . . . . . . . . . . . . 8 1 . 7 . . . 2 8 5 . . . . . . . . . Cannons 20 | . . . . . . . . . . . . . . . . . . . . . 4 7 6 . . . . . 3 . . . . . AOE 58 | . . . 8 4 . . 3 9 . 3 1 . . . . . . . . . 4 . 4 2 . . 7 4 1 . . . . 8 Classes Destroyed 22 | . 6 1 2 . . . . 1 . 2 1 2 . 1 . . . . 2 . 1 1 1 . . . . . . . . . . 1 Worker 26 | . 3 . 4 . . . 2 . 1 2 . . . . 1 . . . 4 . . . . . . . . 2 . . 1 1 . 5 Builder 12 | . 1 . 2 . . . . . 2 1 . . . . . 1 . . 3 . . . 1 . . . . 1 . . . . . . Tunneler 4 | . . 1 . 1 . 1 . . . . . . . . . . . . . . . . . . . . . . . . 1 . . . Hauler 16 | . 1 . 2 . . . 4 . 2 2 . . . . . . . . 3 . . . 1 . . . . . . . 1 . . . Recycler 17 | . . . 1 . . . 2 . 3 1 . . . . 1 1 . . 1 . . . 2 . . . . 2 . . 1 . . 2 Mechanic 2 | . . . . . . . . . . . . . . . . . . . . . . . 1 . . . . . . . . . . 1 Operator 9 | . . . . . . . . . . 1 . . . . . . . 8 . . . . . . . . . . . . . . . . Drone 1 | . . . . . . . . . . . . . . 1 . . . . . . . . . . . . . . . . . . . . Watcher 15 | . 1 . 2 . . . . . 1 1 . . . . . 1 . . 1 . . . 1 . . . . 1 1 . 1 . . 4 Swarmer 80 | . 6 . 8 7 . . 7 6 3 3 4 . . . . 5 . . 1 . 4 . 3 8 . . 7 4 . . . . . 4 Grunt 102 | . 10 2 9 . . . 7 10 7 10 . 8 . . . 2 . . 1 . 2 1 7 . 3 . . 5 . . . 5 . 13 Brawler 7 | . . . . . . . . 1 . . . 2 . . . . . . . . . . . . . . . . . . . . . 4 Duelist 7 | . . . . . . . . . . . . 1 . . . . . . . . 1 2 . . . . . . . . . . . 3 Protector 1 | . . . . . . . . . . . . . . . . . . . . . . . . . . . . . . . . . . 1 Sentry 29 | . . . 3 . . . 3 3 5 2 1 1 . . 1 2 . . 2 . . . 1 . . . . 1 2 . . . . 2 Specialist 7 | . . . . . . . . . . . . . . . . . . . . . . 2 1 . . . . . . . . . . 4 Hunter 14 | . . . . . . . . . . . . 1 . . . . . . 1 . . . . . 2 . . 2 2 . . 2 . 4 Programmer 34 | . . . . . . . . . . 4 . . . . . . . . . . . 1 2 2 . . . 3 3 . 3 . . 16 Heavy 3 | . . . . . . . . . . . . . . . . . . . 1 . . 1 . . . . . . . . . . . 1 Behemoth 3 | . . . . . . . . . . . . . . . . . . . . . 1 . . . . . . . . . 1 . . 1 Cetus Guard 1 | . . . . . . . . . . . . . . . . . 1 . . . . . . . . . . . . . . . . . Quarantine Guard 10 | . . . . . . . . . . . . . . . . . . . . . . . . . . . . . . . . 10 . . Enhanced Grunt 1 | . . . . . . . . . . . . . . . . . . . 1 . . . . . . . . . . . . . . . Lightning 1 | . . . . . . . . . . . . . . . . . . . 1 . . . . . . . . . . . . . . . Z-Light 1 | . . . . . . . . . . . . . . . . . . . 1 . . . . . . . . . . . . . . . Packrat 1 | . . . . . . . . . . . . 1 . . . . . . . . . . . . . . . . . . . . . . Samaritan 6 | . . . . . . . . . . . 2 . . . . . . . . . . . . . 4 . . . . . . . . . Thug 1 | . . . . . . . . . . . . . . . . . . . 1 . . . . . . . . . . . . . . . Butcher 2 | . . . . . . . . . . . . . . . . . . . 2 . . . . . . . . . . . . . . . Guerrilla 2 | . . . . . . . . . . . . . . . . . . . 2 . . . . . . . . . . . . . . . Wizard 1 | . . . . . . . . . . . . . . . . . . . 1 . . . . . . . . . . . . . . . Best Kill Streak 13 | . 5 2 5 6 . 1 7 4 5 5 3 6 . 1 2 3 1 4 4 . 4 6 8 5 3 . 4 4 2 . 2 3 . 13 Combat Bots Only 12 | . 5 2 4 4 . . 6 4 3 3 3 6 . 1 1 3 1 . 2 . 4 6 6 5 3 . 4 4 2 . 2 3 . 12 Max Kills in Single Turn 6 | . 1 1 3 3 . 1 2 3 1 3 1 1 . 1 1 1 1 1 6 . 4 1 3 2 1 . 3 2 1 . 1 1 . 4 Gunslinging 1 | . . . . . . . . . . . . . . . . . . . . . . . . 1 . . . . . . . . . . Exploded 4 | . . . 3 3 . . 2 3 . 2 1 . . . . . . . . . 4 . 2 2 . . 3 2 1 . . . . 4 Melee 2 | . . . 1 1 . . 1 1 1 1 1 1 . 1 1 1 . . . . . . 1 . . . . 1 1 . 1 1 . 2 Uniques/NPCs Destroyed 1 | . . . . . . . . . . . . . . . . . 1 . . . . . . . . . . . . . . . . . A7 (-6/Cetus) Combat | -11 -10 -10 -9 -9 -9 -8 -8 -8 -8 -7 -7 -7 -7 -6 -6 -6 -6 -6 -6 -5 -5 -5 -4 -4 -4 -4 -3 -3 -3 -3 -2 -2 -1 -1 -------- Run | Yrd Mat Min Mat Min Exi Min Mat Gar Mat Fac Low Low Zio Pro Fac Ext Cet Arc Hub Fac Gar Fac Fac Upp Upp Zhi Pro Res Arm Lab Res Qua Acc Com Hostile Shots Fired 2709 | . 74 9 115 27 . 1 69 80 100 191 105 66 . 6 36 194 17 6 33 . 36 18 102 39 90 . 2 121 136 . 50 92 92 802 Missed 698 | . 22 4 44 10 . . 16 20 25 63 30 13 . 4 14 57 10 3 9 . 9 1 31 10 9 . 2 31 45 . 10 27 16 163 Intercepted 18 | . . . . . . . . . . . . . . . . . . . . . . . . . . . . . . . . . . 18 Hits 2011 | . 52 5 71 17 . 1 53 60 75 128 75 53 . 2 22 137 7 3 24 . 27 17 71 29 81 . . 90 91 . 40 65 76 639 Melee 24 | . . . . . . . . . . . 1 12 . . . . . . . . . . . . . . . . 2 . . . . 9 Projectile 1987 | . 52 5 71 17 . 1 53 60 75 128 74 41 . 2 22 137 7 3 24 . 27 17 71 29 81 . . 90 89 . 40 65 76 630 AOE 10 | . . . . . . . . . . . . . . . . . . . . . . . . . . . . . . . . . . 10 Critical Strikes 97 | . . . . 1 . . 2 2 1 2 . 2 . . . 1 1 . 5 . . . 2 1 7 . . 5 6 . 1 5 4 49 Part Disruptions 12 | . . . . . . . . . . . . . . . . . . . . . . . 1 . . . . . 1 . . . 2 8 Actively Blocked 8 | . . . . . . . . . . . . . . . . . . . . . . . . . . . . . . . . . . 8 Damage Taken 34453 | . 515 67 856 203 . 9 745 1017 1049 1382 861 1107 . 38 170 1111 170 76 883 . 649 575 1252 438 1639 . . 1610 1661 . 928 2328 1504 11610 Core 3232 | . 61 28 160 9 . . 127 67 34 119 126 25 . . 11 66 . . 72 . 34 . 131 . 106 . . 103 81 . 54 242 . 1576 Absorbed by Shields 4999 | . . . . . . . . . . . . . . . . 368 40 . . . . . . . . . . . . . . . . 4591 Reduced by Siege Mode 176 | . . . . . . . . . . . . . . . . . . . . . . . . 30 53 . . . 93 . . . . . Redirected to Shielding 211 | . . . . . . . . . . . . . . . . . . . . . . . . . 142 . . . 53 . 16 . . . Ignored by Resistances 3020 | . . . . . . . . . . . . . . . . . . . 174 . . 17 102 55 11 . . 229 270 . 364 . 313 1485 Regen/Repaired (Parts) 2152 | . . . . . . . 60 . 101 . . . . . 122 . . . . . . . . . . . . . . . . 1121 256 492 Core Remaining (%) 75 | 100 . 64 . . . 57 . . 58 . . . . 61 . . . . 82 . . 96 . . . . 79 . . 80 . 79 . . Volleys Fired 328 | . 64 10 6 2 . . 3 10 . 3 2 . . . . 26 13 5 29 . 20 14 27 18 22 . 5 7 29 . . 5 . 8 Largest 3 | . 2 2 1 1 . . 1 1 . 1 1 . . . . 3 3 2 3 . 3 3 3 3 3 . 1 1 2 . . 1 . 1 Hottest 240 | . 40 60 30 30 . . 30 30 . 30 30 . . . . 204 240 95 103 . 132 132 132 95 138 . 43 43 108 . . 43 . 20 Shots Fired 706 | . 128 20 6 2 . . 3 10 . 3 2 . . . . 75 24 10 78 . 51 42 76 49 52 . 5 7 52 . . 4 . 7 Gun 464 | . 128 20 . . . . . . . . . . . . . 75 24 10 76 . . . 25 48 52 . . . 6 . . . . . Cannon 185 | . . . . . . . . . . . . . . . . . . . . . 50 42 49 . . . . . 44 . . . . . Launcher 56 | . . . 6 2 . . 3 10 . 3 2 . . . . . . . 2 . 1 . 2 1 . . 5 7 2 . . 4 . 6 Special 1 | . . . . . . . . . . . . . . . . . . . . . . . . . . . . . . . . . . 1 Kinetic 533 | . 128 10 . . . . . . . . . . . . . . . 5 76 . 50 42 74 48 50 . . . 50 . . . . . Thermal 116 | . . 10 . . . . . . . . . . . . . 75 24 5 . . . . . . 2 . . . . . . . . . Explosive 52 | . . . 6 2 . . 3 10 . 3 2 . . . . . . . 2 . 1 . 2 1 . . 5 3 2 . . 4 . 6 Electromagnetic 4 | . . . . . . . . . . . . . . . . . . . . . . . . . . . . 4 . . . . . . Robot Hit Streak 16 | . 10 4 5 1 . . 1 7 . . . . . . . 14 4 5 16 . 10 11 12 9 5 . . 3 7 . . . . 6 Robot Miss Streak 12 | . 5 1 3 . . . 2 . . . . . . . . 3 4 1 3 . 12 9 5 3 4 . . 1 4 . . . . . Penetration Max 1 | . . . . . . . . . . . . . . . . . . . 1 . . . 1 . 1 . . . . . . . . . Secondary Targets 10 | . . . . . . . . . . . . . . . . 4 . . . . . . . 4 2 . . . . . . . . . Max Gunslinging Chain 2 | . . . . . . . . . . . . . . . . 1 . . . . . . . 2 1 . . . . . . . . . Shots Hit Robots 1268 | . 66 13 61 9 . 2 56 35 64 73 17 52 . 1 7 63 21 27 48 . 40 33 60 36 33 3 . 64 51 . 39 78 7 209 Core Hits 714 | . 29 6 20 6 . . 24 22 16 22 11 12 . . 4 24 7 8 67 . 51 43 98 16 17 1 12 27 16 . 11 32 1 111 Critical Kills 20 | . . . 3 . . . 1 1 1 1 . . . . . . . . 3 . . . 2 3 3 . . . . . . 2 . . Critical Parts Destroyed 69 | . . . 14 1 . 1 3 1 6 9 . 7 . . . . . . 6 . . . 4 2 3 . . 7 . . 1 4 . . Critical Strikes 167 | . . . 17 1 . 1 9 4 11 11 1 10 . . . 5 . 1 9 . . . 7 5 7 . . 13 6 . 3 18 2 26 Burn 2 | . . . . . . . . . . . . . . . . 2 . . . . . . . . . . . . . . . . . . Destroy 28 | . . . . . . . . . . . . . . . . . . 1 9 . . . 6 5 7 . . . . . . . . . Blast 2 | . . . . . . . . . . . . . . . . . . . . . . . . . . . . . 2 . . . . . Smash 64 | . . . 17 1 . 1 4 2 7 10 . 7 . . . . . . . . . . . . . . . 7 . . 1 6 . 1 Sever 53 | . . . . . . . 5 2 4 1 1 3 . . . 2 . . . . . . . . . . . 6 2 . 2 12 2 11 Impale 18 | . . . . . . . . . . . . . . . . 1 . . . . . . 1 . . . . . 2 . . . . 14 Melee Attacks 1211 | . . . 83 14 . 2 81 49 97 99 32 64 1 1 13 20 10 23 9 3 1 . 14 . 3 3 . 83 24 6 57 112 20 287 Impact 387 | . . . 71 11 . 2 41 20 36 90 3 35 . . 2 . . . . . . . . . . . . 38 . . 15 21 . 2 Slashing 644 | . . . 12 3 . . 40 29 61 9 29 29 1 1 11 17 10 23 9 3 1 . 3 . 3 3 . 33 17 6 29 84 20 158 Piercing 180 | . . . . . . . . . . . . . . . . 3 . . . . . . 11 . . . . 12 7 . 13 7 . 127 Sneak Attacks 107 | . . . 11 3 . 2 14 . 13 10 4 1 . . 2 2 9 8 2 . . . . . 3 . . 6 . . 8 2 . 7 Combat Hostiles 5 | . . . . 1 . . 1 . . 1 . . . . . . . . . . . . . . . . . . . . . 2 . . Follow-up Attacks 259 | . . . 11 3 . . 10 5 10 13 7 11 . . 2 2 3 . . . . . 1 . . . . 15 . . 20 38 3 105 Damage Inflicted 61110 | . 817 147 2036 475 . 98 2278 1620 2523 3452 869 2159 . 40 327 1720 808 1588 3427 . 1225 955 2433 848 819 260 724 4300 2255 . 2402 4895 440 15170 Guns 5267 | . 817 147 . . . . . . . . . . . . . 1146 322 193 1324 . . . 231 631 403 . . . 53 . . . . . Cannons 3999 | . . . . . . . . . . . . . . . . . . . . . 933 955 1156 . . . . . 955 . . . . . Explosions 10217 | . . . 389 183 . . 220 733 . 328 159 . . . . . . . 1925 . 292 . 766 217 . . 724 732 217 . . 51 . 3281 Melee 41541 | . . . 1647 292 . 98 2058 887 2512 3124 710 2159 . 40 327 574 486 1395 178 . . . 280 . 416 260 . 3568 1030 . 2402 4844 440 11814 Ramming 86 | . . . . . . . . . 11 . . . . . . . . . . . . . . . . . . . . . . . . 75 Kinetic 7638 | . 817 74 . . . . . . . . . . . . . . . 106 1324 . 933 955 1387 631 403 . . . 1008 . . . . . Thermal 2420 | . . 73 . . . . . . . . . . . . . 1146 322 87 303 . . . 451 . . . . 38 . . . . . . Explosive 7789 | . . . 389 183 . . 174 733 . 328 159 . . . . . . . 270 . 292 . 315 217 . . 724 456 217 . . 51 . 3281 Electromagnetic 1636 | . . . . . . . 46 . . . . . . . . . . . 1352 . . . . . . . . 238 . . . . . . Impact 10972 | . . . 1528 246 . 98 933 332 883 2902 120 1236 . . 39 . . . . . . . . . . . . 1396 . . 392 794 . 73 Slashing 24699 | . . . 119 46 . . 1125 555 1629 222 590 923 . 40 288 466 486 1395 178 . . . 50 . 416 260 . 1901 777 . 1636 3932 440 7225 Piercing 5870 | . . . . . . . . . . . . . . . . 108 . . . . . . 230 . . . . 271 253 . 374 118 . 4516 Highest Corruption 33 | . . . . . . . . . . 3 3 6 6 16 . . . 1 11 . . . 2 5 6 6 6 2 9 9 2 19 16 33 Average Corruption 6 | . . . . . . . . . . 2 3 4 6 8 . . . 1 8 . . . 1 3 5 6 6 1 4 9 1 4 11 18 Corruption Purged 6 | . . . . . . . . . . . . . . . . . . 1 5 . . . . . . . . . . . . . . . Corruption Blocked . | . . . . . . . . . . . . . . . . . . . . . . . . . . . . . . . . . . . Effects 535 | . . . . . . . . . . 4 14 35 80 40 . . . 2 9 . . . 4 19 23 9 28 3 13 13 3 115 5 116 Message Errors 145 | . . . . . . . . . . 1 3 15 20 10 . . . . 2 . . . 1 8 5 3 10 2 4 4 . 28 2 27 Matter Fused 149 | . . . . . . . . . . 1 5 7 22 12 . . . . 2 . . . 1 1 8 3 8 . 1 3 2 37 1 35 Heat Flow Errors 63 | . . . . . . . . . . . 2 4 9 4 . . . . . . . . . 1 . 1 4 . 1 2 . 14 1 20 Energy Discharges 52 | . . . . . . . . . . . 1 6 7 4 . . . 1 1 . . . 1 1 3 1 2 . 3 1 . 10 1 9 Parts Rejected 5 | . . . . . . . . . . . 1 . . . . . . . . . . . . . . . . . 1 . . 1 . 2 Parts Fused 7 | . . . . . . . . . . . . . . . . . . . . . . . . 4 . . 1 . 1 . . 1 . . Data Loss (minor) 70 | . . . . . . . . . . 1 2 2 15 8 . . . . 2 . . . . 2 2 1 2 1 1 1 1 16 . 13 Data Loss (major) 20 | . . . . . . . . . . 1 . . 5 1 . . . . 1 . . . . . 1 . . . 1 1 . 4 . 5 Misfires 4 | . . . . . . . . . . . . . . . . . . . . . . . 1 1 2 . . . . . . . . . Alerts 12 | . . . . . . . . . . . . 1 2 1 . . . 1 . . . . . . 1 . 1 . . 1 . 3 . 1 Misdirections 3 | . . . . . . . . . . . . . . . . . . . . . . . . . . . . . . . . . . 3 Weapon Failures 5 | . . . . . . . . . . . . . . . . . . . 1 . . . . 1 1 . . . . . . 1 . 1 Overload Shots 1 | . . . . . . . . . . . . . . . . . 1 . . . . . . . . . . . . . . . . . Overflow Damage 6308 | . . . 549 96 . 66 237 133 453 751 218 466 . 10 . . . 333 114 . . 3 54 . 185 . 27 405 125 . 325 578 . 1180 Projectiles 12 | . . . . . . . . . . . . . . . . . . . . . . 3 . . . . . . 9 . . . . . Explosions 345 | . . . 38 3 . . . 23 . 25 . . . . . . . . 114 . . . 54 . . . 27 25 2 . . . . 34 Melee 5951 | . . . 511 93 . 66 237 110 453 726 218 466 . 10 . . . 333 . . . . . . 185 . . 380 114 . 325 578 . 1146 Knockbacks 130 | . . . 4 . . 1 3 1 8 10 . 3 . . . . . . . . 14 18 40 . . . . 5 18 . 1 4 . . Impact 39 | . . . 3 . . 1 3 1 8 10 . 3 . . . . . . . . . . . . . . . 5 . . 1 4 . . Kinetic 77 | . . . . . . . . . . . . . . . . . . . . . 14 17 32 . . . . . 14 . . . . . Secondary 14 | . . . 1 . . . . . . . . . . . . . . . . . . 1 8 . . . . . 4 . . . . . Self-Inflicted Damage 679 | . . . 39 56 . . 29 79 . . . . . . . . . . 157 . . . . . . . . . . . . . . 319 Shots 16 | . . . 2 3 . . 1 3 . . . . . . . . . . 2 . . . . . . . . . . . . . . 5 Rammed 3 | . . . . . . . . . 1 . . . . . . . . . . . . . . . . . . . . . . . . 2 Targets Rammed 3 | . . . . . . . . . 1 . . . . . . . . . . . . . . . . . . . . . . . . 2 Kicked . | . . . . . . . . . . . . . . . . . . . . . . . . . . . . . . . . . . . Crushed . | . . . . . . . . . . . . . . . . . . . . . . . . . . . . . . . . . . . Highest Temperature 522 | . . 18 5 8 . . 4 7 3 10 265 279 275 278 . 396 94 . 122 . 225 196 205 346 256 138 213 15 249 226 . 261 145 522 Average Temperature 58 | . . 11 3 6 . . 4 7 1 4 118 109 97 102 . 90 56 . 33 . 108 77 70 114 133 73 105 15 71 110 . 25 10 110 Received Heat Transfer 4990 | . 150 36 345 . . . 351 441 369 513 60 186 . 18 54 305 . 9 24 . 84 36 282 . 351 . . 294 18 . 198 63 . 803 Effects 8 | . . . . . . . . . . . 1 . . . . . . . . . 1 . . . . . . . . . . 2 . 4 Shutdowns 1 | . . . . . . . . . . . . . . . . . . . . . . . . . . . . . . . . . . 1 Energy Bleed 3 | . . . . . . . . . . . 1 . . . . . . . . . . . . . . . . . . . . 2 . . Interference 4 | . . . . . . . . . . . . . . . . . . . . . 1 . . . . . . . . . . . . 3 Siege Activations 8 | . . . . . . . . . . . . . . . . . . . 1 . . . . 2 2 . . . 3 . . . . . Total Turns 129 | . . . . . . . . . . . . . . . . . . . 3 . . . . 52 26 . . . 48 . . . . . Longest Duration 38 | . . . . . . . . . . . . . . . . . . . 3 . . . . 30 23 . . . 38 . . . . . Martial Activations . | . . . . . . . . . . . . . . . . . . . . . . . . . . . . . . . . . . . Shielding Activations . | . . . . . . . . . . . . . . . . . . . . . . . . . . . . . . . . . . . Robots Disrupted . | . . . . . . . . . . . . . . . . . . . . . . . . . . . . . . . . . . . Combat Hostiles . | . . . . . . . . . . . . . . . . . . . . . . . . . . . . . . . . . . . Robots Corrupted 42 | . . . 7 1 . . 5 1 4 9 1 5 . . . . . . . . . . . . . . . 4 . . . 4 . 1 Combat Hostiles 29 | . . . 3 1 . . 3 1 3 6 . 5 . . . . . . . . . . . . . . . 3 . . . 4 . . Parts Fried 69 | . . . 14 2 . 1 5 . 5 18 . 9 . . . . . . 4 . . . . . . . . 4 . . . 6 . 1 Impact Corruptions 121 | . . . 22 4 . 3 10 3 10 30 6 12 . . . . . . . . . . . . . . . 11 . . 2 6 . 2 Robots Melted . | . . . . . . . . . . . . . . . . . . . . . . . . . . . . . . . . . . . Combat Hostiles . | . . . . . . . . . . . . . . . . . . . . . . . . . . . . . . . . . . . Parts Melted 3 | . . . . . . . . . . . . . . . . 1 . . 1 . . . 1 . . . . . . . . . . . Heat Transferred 3578 | . . 175 . . . . . . . . . . . . . 2035 507 111 350 . . . 300 . . . . 100 . . . . . . Parts Sabotaged 4 | . . . . . . . . . . . . . . . . . . . . . . . . . . . . . 4 . . . . . Parts Stolen 1 | . . . . . . . . . . . 1 . . . . . . . . . . . . . . . . . . . . . . . Parts Stripped . | . . . . . . . . . . . . . . . . . . . . . . . . . . . . . . . . . . . Power Chain Reactions 4 | . . . . . . . . . . . . . . . . . . . 2 . . . . . . . . 2 . . . . . . Alert | -11 -10 -10 -9 -9 -9 -8 -8 -8 -8 -7 -7 -7 -7 -6 -6 -6 -6 -6 -6 -5 -5 -5 -4 -4 -4 -4 -3 -3 -3 -3 -2 -2 -1 -1 ------- Run | Yrd Mat Min Mat Min Exi Min Mat Gar Mat Fac Low Low Zio Pro Fac Ext Cet Arc Hub Fac Gar Fac Fac Upp Upp Zhi Pro Res Arm Lab Res Qua Acc Com Maximum Alert Level 5 | . 1 . . 1 . . 1 3 2 1 . . . . . 4 3 1 5 4 4 3 3 . . . . 1 . . . 1 1 4 Low Security (%) 50 | 100 86 100 100 92 . 100 58 1 . 53 . . . . 100 35 . 28 40 . . . . . . . . 41 100 . 100 66 71 30 Level 1 26 | . 13 . . 7 . . 41 17 72 46 . . . . . 40 . 71 2 . . . 7 . . . . 58 . . . 33 28 19 Level 2 10 | . . . . . . . . 69 27 . . . . . . 14 . . 1 . . 7 41 . . . . . . . . . . 33 Level 3 8 | . . . . . . . . 12 . . . . . . . 1 100 . 11 91 45 92 50 . . . . . . . . . . 7 Level 4 3 | . . . . . . . . . . . . . . . . 8 . . 26 8 54 . . . . . . . . . . . . 9 Level 5 . | . . . . . . . . . . . . . . . . . . . . . . . . . . . . . . . . . . . High Security . | . . . . . . . . . . . . . . . . . . . 17 . . . . . . . . . . . . . . . Max Security . | . . . . . . . . . . . . . . . . . . . . . . . . . . . . . . . . . . . Peak Influence 2262 | . 228 104 175 218 . 5 307 796 473 250 . . . . 150 1303 918 363 2262 1108 1401 906 927 . . . . 324 186 . 40 325 274 1456 Initial 1108 | . . 64 . 61 . . . 176 388 147 . . . . 150 1 725 316 36 1108 711 735 429 . . . . . 138 . . . 194 133 Average 299 | . 79 43 59 118 . . 154 558 381 172 . . . . 60 316 828 250 939 1059 1126 773 643 . . . . 173 108 . 7 155 152 443 Influence Increases 17291 | . 482 55 597 247 . 5 646 710 495 615 110 468 . 367 197 1695 363 258 2720 29 710 401 1066 290 215 5 160 567 301 . 171 817 321 2208 Destroy 0b10 Robot/C 8220 | . 320 40 400 140 . . 340 400 300 380 100 300 . 220 20 700 160 80 720 . 420 240 460 220 160 . 140 300 140 . 80 340 60 1040 Destroy 0b10 Robot/NC 590 | . 30 5 55 5 . 5 40 . 45 40 . 10 . 5 10 20 10 40 85 . . . 40 . . 5 . 30 5 . 25 5 10 65 Destroy Leader 1592 | . 64 10 78 20 . . 78 20 96 116 10 20 . 30 10 94 . . 174 . 30 60 96 30 40 . 20 62 42 . 34 120 20 218 Allied During Kill 2550 | . . . . . . . . . . . . 3 . 97 . 774 170 120 949 . 171 91 114 25 15 . . . . . . . 21 . Successful Hack 150 | . 7 . 8 . . . 5 . 14 . . . . . 3 16 . . . 10 . . 36 . . . . . . . 5 40 6 . Disable Machine 1035 | . . . 15 45 . . 45 15 . 15 . . . . . 30 15 15 465 15 . . 105 . . . . 30 30 . 15 135 15 30 Anti-Garrison Action 400 | . . . . . . . . 200 . . . . . . . . . . . . 50 . . . . . . . . . . . 150 . Destroy Structure 1689 | . 1 . 41 22 . . 18 60 10 19 . . . . 4 31 8 3 297 4 39 10 170 . . . . 100 84 . 12 177 39 540 Advance Influence 150 | . . . . . . . . . . . . . . . 150 . . . . . . . . . . . . . . . . . . . Partial Spotted 45 | . . . . . . . 15 . . . . . . . . . . . . . . . . . . . . . . . . . . 30 Lose Combat Pursuer 870 | . 60 . . 15 . . 105 15 30 45 . 135 . 15 . 30 . . 30 . . . 45 15 . . . 45 . . . . . 285 Influence Decreases 15922 | . 315 222 439 383 22 5 374 186 966 746 304 328 140 367 194 401 868 946 562 1274 326 924 1017 752 467 218 160 302 433 133 171 492 437 1048 Entered New Map 5923 | . . 103 . 97 22 . . 96 408 178 73 . 140 . . 2 572 476 68 1154 306 666 449 344 89 213 . . 127 133 . . 131 76 Time Decay 8499 | . 295 119 419 286 . 5 364 . 518 498 171 248 . 327 174 349 286 350 294 120 . 198 428 398 318 5 160 262 286 . 171 492 286 672 Lost Part 830 | . 20 . 20 . . . 10 90 40 70 60 40 . . . 30 10 . 20 . . . 40 . 40 . . 40 10 . . . . 290 Lost Ally 670 | . . . . . . . . . . . . 40 . 40 20 20 . 120 180 . 20 60 100 10 20 . . . 10 . . . 20 10 Squads Dispatched 75 | . 4 . 2 . . . 2 . 1 8 . 1 . . 4 4 . . 12 . . 2 8 . . . . 2 3 . 1 2 5 14 Investigation 13 | . 2 . 1 . . . 1 . 1 . . . . . 2 1 . . . . . . 2 . . . . . 1 . . 2 . . Extermination 18 | . . . . . . . . . . 3 . . . . 1 . . . 1 . . . 1 . . . . 1 1 . 1 . 1 8 Reinforcement 28 | . 2 . 1 . . . 1 . . 4 . . . . . 3 . . 6 . . 2 2 . . . . 1 1 . . . 2 3 Assault 11 | . . . . . . . . . . . . 1 . . . . . . 5 . . . . . . . . . . . . . 2 3 Garrison 5 | . . . . . . . . . . 1 . . . . 1 . . . . . . . 3 . . . . . . . . . . . Intercept . | . . . . . . . . . . . . . . . . . . . . . . . . . . . . . . . . . . . Searches Triggered . | . . . . . . . . . . . . . . . . . . . . . . . . . . . . . . . . . . . Construction Impeded 4 | . . . 1 . . . . . . 1 . . . . . 1 . . . . . . 1 . . . . . . . . . . . Haulers Reinforced 4 | . . . . . . . . . . 1 . . . . . . . . 2 . . . . . . . . 1 . . . . . . Active Scanning Responses . | . . . . . . . . . . . . . . . . . . . . . . . . . . . . . . . . . . . Cargo Convoy Interrupts . | . . . . . . . . . . . . . . . . . . . . . . . . . . . . . . . . . . . Stealth | -11 -10 -10 -9 -9 -9 -8 -8 -8 -8 -7 -7 -7 -7 -6 -6 -6 -6 -6 -6 -5 -5 -5 -4 -4 -4 -4 -3 -3 -3 -3 -2 -2 -1 -1 --------- Run | Yrd Mat Min Mat Min Exi Min Mat Gar Mat Fac Low Low Zio Pro Fac Ext Cet Arc Hub Fac Gar Fac Fac Upp Upp Zhi Pro Res Arm Lab Res Qua Acc Com Distress Signals 25 | . 2 . 4 . . . 4 . 4 3 . . . . . 2 2 . 3 . . . . . . . . . . . . . . 1 Communications Jammed 82 | . . . . . . . . . . . . . . . . . . . . . . . . . . . . 54 27 . 1 . . . Distress Signals 82 | . . . . . . . . . . . . . . . . . . . . . . . . . . . . 54 27 . 1 . . . Times Spotted 566 | . 29 2 29 8 . 3 47 20 27 26 6 22 . 6 1 42 10 11 36 . 21 12 23 10 8 . 3 27 13 . 8 16 7 93 Peak Tracking Total 10 | . 5 2 5 4 . . 7 4 5 6 4 9 . 4 1 8 5 2 7 . 5 3 6 5 5 . 4 5 5 . 2 2 5 10 Tactical Retreats 45 | . 3 . . 1 . . 7 1 2 2 . 4 . 1 . 2 . . 2 . . . 2 1 . . . 2 . . . . . 15 Traps | -11 -10 -10 -9 -9 -9 -8 -8 -8 -8 -7 -7 -7 -7 -6 -6 -6 -6 -6 -6 -5 -5 -5 -4 -4 -4 -4 -3 -3 -3 -3 -2 -2 -1 -1 ------- Run | Yrd Mat Min Mat Min Exi Min Mat Gar Mat Fac Low Low Zio Pro Fac Ext Cet Arc Hub Fac Gar Fac Fac Upp Upp Zhi Pro Res Arm Lab Res Qua Acc Com Traps Triggered 16 | . 3 . 1 . . . 1 4 1 . . . . . . . . . 1 . . . . . . . . 1 1 . . 3 . . Indirectly 2 | . . . . . . . . . . . . . . . . . . . 1 . . . . . . . . 1 . . . . . . Trap Hack Attempts . | . . . . . . . . . . . . . . . . . . . . . . . . . . . . . . . . . . . Triggered . | . . . . . . . . . . . . . . . . . . . . . . . . . . . . . . . . . . . Disarmed . | . . . . . . . . . . . . . . . . . . . . . . . . . . . . . . . . . . . Reprogrammed . | . . . . . . . . . . . . . . . . . . . . . . . . . . . . . . . . . . . Reused . | . . . . . . . . . . . . . . . . . . . . . . . . . . . . . . . . . . . Traps Extracted . | . . . . . . . . . . . . . . . . . . . . . . . . . . . . . . . . . . . Installed . | . . . . . . . . . . . . . . . . . . . . . . . . . . . . . . . . . . . Triggered . | . . . . . . . . . . . . . . . . . . . . . . . . . . . . . . . . . . . Machines | -11 -10 -10 -9 -9 -9 -8 -8 -8 -8 -7 -7 -7 -7 -6 -6 -6 -6 -6 -6 -5 -5 -5 -4 -4 -4 -4 -3 -3 -3 -3 -2 -2 -1 -1 ---------- Run | Yrd Mat Min Mat Min Exi Min Mat Gar Mat Fac Low Low Zio Pro Fac Ext Cet Arc Hub Fac Gar Fac Fac Upp Upp Zhi Pro Res Arm Lab Res Qua Acc Com Machines Disabled 79 | . . . 1 3 . . 3 3 . 1 . 1 . . . 6 1 1 31 1 1 . 7 . . . . 2 2 1 1 9 2 2 Max in Single Turn 10 | . . . 1 3 . . 2 1 . 1 . 1 . . . . 1 . 10 1 1 . 2 . . . . 2 1 1 1 1 1 1 Garrison Access 1 | . . . . . . . . . . . . . . . . . . . . . . . . . . . . . . . . . 1 . Garrison Relay 3 | . . . . . . . . 2 . . . . . . . . . . . . 1 . . . . . . . . . . . . . Network Hub 2 | . . . . . . . . . . . . . . . . . . . 2 . . . . . . . . . . . . . . . Machines Repaired . | . . . . . . . . . . . . . . . . . . . . . . . . . . . . . . . . . . . Machines Dismantled . | . . . . . . . . . . . . . . . . . . . . . . . . . . . . . . . . . . . Machines Sabotaged . | . . . . . . . . . . . . . . . . . . . . . . . . . . . . . . . . . . . Overloaded Fab Kills . | . . . . . . . . . . . . . . . . . . . . . . . . . . . . . . . . . . . Hacking | -11 -10 -10 -9 -9 -9 -8 -8 -8 -8 -7 -7 -7 -7 -6 -6 -6 -6 -6 -6 -5 -5 -5 -4 -4 -4 -4 -3 -3 -3 -3 -2 -2 -1 -1 --------- Run | Yrd Mat Min Mat Min Exi Min Mat Gar Mat Fac Low Low Zio Pro Fac Ext Cet Arc Hub Fac Gar Fac Fac Upp Upp Zhi Pro Res Arm Lab Res Qua Acc Com Machines Accessed 43 | . 1 . 2 . 1 . 6 . 3 3 . . . . 3 5 . . . 1 . 1 4 1 . 4 . . 2 . 1 3 2 . Terminals 18 | . 1 . 2 . . . 3 . 2 2 . . . . 1 4 . . . . . . 1 . . . . . . . . . 2 . Fabricators 6 | . . . . . . . . . . 1 . . . . 1 . . . . . . 1 1 . . . . . 1 . 1 . . . Repair Stations 5 | . . . . . . . 1 . 1 . . . . . 1 . . . . . . . . . . . . . . . . 2 . . Recycling Units 2 | . . . . . . . . . . . . . . . . 1 . . . . . . . . . . . . 1 . . . . . Scanalyzers 3 | . . . . . . . 1 . . . . . . . . . . . . . . . 1 . . . . . . . . 1 . . Garrison Access 3 | . . . . . . . 1 . . . . . . . . . . . . 1 . . 1 . . . . . . . . . . . Total Hacks 125 | . 2 . 7 . 4 . 14 . 6 4 . . . . 5 10 . . . 1 . 2 14 1 . 17 . . 3 . 2 29 4 . Successful 77 | . 2 . 2 . 4 . 8 . 4 2 . . . . 3 4 . . . 1 . 1 6 1 . 17 . . 2 . 2 16 2 . Failed 46 | . . . 5 . . . 5 . 2 2 . . . . 2 6 . . . . . 1 8 . . . . . 1 . . 12 2 . Catastrophic 11 | . . . 4 . . . . . 1 . . . . . . . . . . . . 1 3 . . . . . . . . 2 . . Database Lockouts 2 | . . . . . . . 1 . . . . . . . . . . . . . . . . . . . . . . . . 1 . . Manual 171 | . 2 . 7 . . . 8 . 4 4 . . . . 21 10 1 . 13 6 3 7 19 . . . . 15 3 . 1 14 6 27 Terminals 38 | . 2 . 7 . . . 7 . 4 3 . . . . 1 9 . . . . . . 1 . . . . . . . . . 4 . Fabricators 14 | . . . . . . . . . . 1 . . . . 3 . . . . . . 2 5 . . . . . 1 . 2 . . . Repair Stations 25 | . . . . . . . 1 . 2 . . . . . 1 . . . . . . . . . . . . . . . . 21 . . Recycling Units 3 | . . . . . . . . . . . . . . . . 1 . . . . . . . . . . . . 2 . . . . . Scanalyzers 16 | . . . . . . . 4 . . . . . . . . . . . . . . . 4 . . . . . . . . 8 . . Garrison Access 7 | . . . . . . . 2 . . . . . . . . . . . . 1 . . 4 . . . . . . . . . . . Terminal Hacks 36 | . 2 . 2 . 4 . 1 . 1 1 . . . . 1 3 . . . . . . 1 1 . 17 . . . . . . 2 . Record 10 | . . . . . 4 . . . . . . . . . . . . . . . . . . 1 . 5 . . . . . . . . Part Schematic 6 | . 2 . . . . . . . . . . . . . . . . . . . . . . . . 4 . . . . . . . . Robot Analysis 4 | . . . . . . . . . . . . . . . . . . . . . . . . . . 4 . . . . . . . . Prototype ID Bank 4 | . . . . . . . . . . . . . . . . . . . . . . . . . . 4 . . . . . . . . Open Door 6 | . . . . . . . . . . . . . . . 1 3 . . . . . . . . . . . . . . . . 2 . Open DSF 1 | . . . . . . . . . . . . . . . . . . . . . . . 1 . . . . . . . . . . . Branch Access Points 1 | . . . . . . . 1 . . . . . . . . . . . . . . . . . . . . . . . . . . . Hauler Manifests 1 | . . . 1 . . . . . . . . . . . . . . . . . . . . . . . . . . . . . . . Registered Components 3 | . . . 1 . . . . . 1 1 . . . . . . . . . . . . . . . . . . . . . . . . Fabricator Hacks 5 | . . . . . . . . . . . . . . . . . . . . . . 1 2 . . . . . 1 . 1 . . . Network Status 1 | . . . . . . . . . . . . . . . . . . . . . . . . . . . . . . . 1 . . . Load Schematic 3 | . . . . . . . . . . . . . . . . . . . . . . 1 1 . . . . . 1 . . . . . Build 1 | . . . . . . . . . . . . . . . . . . . . . . . 1 . . . . . . . . . . . Repair Station Hacks 12 | . . . . . . . . . 2 . . . . . . . . . . . . . . . . . . . . . . 10 . . Scan Component 7 | . . . . . . . . . 1 . . . . . . . . . . . . . . . . . . . . . . 6 . . Repair 5 | . . . . . . . . . 1 . . . . . . . . . . . . . . . . . . . . . . 4 . . Recycling Unit Hacks 1 | . . . . . . . . . . . . . . . . . . . . . . . . . . . . . 1 . . . . . Retrieve Matter 1 | . . . . . . . . . . . . . . . . . . . . . . . . . . . . . 1 . . . . . Scanalyzer 12 | . . . . . . . 3 . . . . . . . . . . . . . . . 3 . . . . . . . . 6 . . Insert Component 2 | . . . . . . . . . . . . . . . . . . . . . . . . . . . . . . . . 2 . . Retrieve Study 10 | . . . . . . . 3 . . . . . . . . . . . . . . . 3 . . . . . . . . 4 . . Garrison Access Hacks 2 | . . . . . . . 1 . . . . . . . . . . . . 1 . . . . . . . . . . . . . . Unlock Access 2 | . . . . . . . 1 . . . . . . . . . . . . 1 . . . . . . . . . . . . . . Unauthorized Hacks 9 | . . . . . . . 3 . 1 1 . . . . 2 1 . . . . . . . . . . . . . . 1 . . . Terminals 4 | . . . . . . . 2 . 1 1 . . . . . . . . . . . . . . . . . . . . . . . . Botnet 4 | . . . . . . . 2 . 1 1 . . . . . . . . . . . . . . . . . . . . . . . . Fabricators 2 | . . . . . . . . . . . . . . . 1 . . . . . . . . . . . . . . . 1 . . . Haulers 2 | . . . . . . . . . . . . . . . 1 . . . . . . . . . . . . . . . 1 . . . Repair Stations 2 | . . . . . . . 1 . . . . . . . 1 . . . . . . . . . . . . . . . . . . . Patch 2 | . . . . . . . 1 . . . . . . . 1 . . . . . . . . . . . . . . . . . . . Recycling Units 1 | . . . . . . . . . . . . . . . . 1 . . . . . . . . . . . . . . . . . . Reject 1 | . . . . . . . . . . . . . . . . 1 . . . . . . . . . . . . . . . . . . Scanalyzers . | . . . . . . . . . . . . . . . . . . . . . . . . . . . . . . . . . . . Garrison Access . | . . . . . . . . . . . . . . . . . . . . . . . . . . . . . . . . . . . Data Cores Recovered . | . . . . . . . . . . . . . . . . . . . . . . . . . . . . . . . . . . . Used . | . . . . . . . . . . . . . . . . . . . . . . . . . . . . . . . . . . . Hacking Detections 23 | . . . 2 . . . 3 . 1 2 . . . . 1 4 . . . . . 1 3 . . . . . 2 . 1 3 . . Full Trace Events 5 | . . . . . . . . . . . . . . . 1 1 . . . . . . 1 . . . . . . . . 2 . . Feedback Events . | . . . . . . . . . . . . . . . . . . . . . . . . . . . . . . . . . . . Feedback Blocked . | . . . . . . . . . . . . . . . . . . . . . . . . . . . . . . . . . . . Robot Schematics Acquired 8 | . . . . . . . . . . . . . 4 . . . . . . . . . . . . . . . . . . . . 4 Robots Built . | . . . . . . . . . . . . . . . . . . . . . . . . . . . . . . . . . . . Authchips . | . . . . . . . . . . . . . . . . . . . . . . . . . . . . . . . . . . . Time . | . . . . . . . . . . . . . . . . . . . . . . . . . . . . . . . . . . . Total Robot Build Rating . | . . . . . . . . . . . . . . . . . . . . . . . . . . . . . . . . . . . Part Schematics Acquired 24 | . 2 . . . . . . . . . . . 14 . . . . . . . . . . . . 4 . . . . . 4 . . Parts Built 1 | . . . . . . . . . . . . . . . . . . . . . . . 1 . . . . . . . . . . . Authchips . | . . . . . . . . . . . . . . . . . . . . . . . . . . . . . . . . . . . Time 17 | . . . . . . . . . . . . . . . . . . . . . . . 17 . . . . . . . . . . . Total Part Build Rating 1 | . . . . . . . . . . . . . . . . . . . . . . . 1 . . . . . . . . . . . Part Studies Acquired 10 | . . . . . . . 3 . . . . . . . . . . . . . . . 3 . . . . . . . . 4 . . Parts Repaired 5 | . . . . . . . . . 1 . . . . . . . . . . . . . . . . . . . . . . 4 . . Time 266 | . . . . . . . . . 26 . . . . . . . . . . . . . . . . . . . . . . 240 . . Parts Recycled . | . . . . . . . . . . . . . . . . . . . . . . . . . . . . . . . . . . . Recycled Matter . | . . . . . . . . . . . . . . . . . . . . . . . . . . . . . . . . . . . Retrieved Matter . | . . . . . . . . . . . . . . . . . . . . . . . . . . . . . . . . . . . Retrieved Components . | . . . . . . . . . . . . . . . . . . . . . . . . . . . . . . . . . . . Parts Scanalyzed . | . . . . . . . . . . . . . . . . . . . . . . . . . . . . . . . . . . . Part Schematics Acquired . | . . . . . . . . . . . . . . . . . . . . . . . . . . . . . . . . . . . Parts Damaged . | . . . . . . . . . . . . . . . . . . . . . . . . . . . . . . . . . . . Bothacking | -11 -10 -10 -9 -9 -9 -8 -8 -8 -8 -7 -7 -7 -7 -6 -6 -6 -6 -6 -6 -5 -5 -5 -4 -4 -4 -4 -3 -3 -3 -3 -2 -2 -1 -1 ------------ Run | Yrd Mat Min Mat Min Exi Min Mat Gar Mat Fac Low Low Zio Pro Fac Ext Cet Arc Hub Fac Gar Fac Fac Upp Upp Zhi Pro Res Arm Lab Res Qua Acc Com Used RIF Installer . | . . . . . . . . . . . . . . . . . . . . . . . . . . . . . . . . . . . Robots Hacked . | . . . . . . . . . . . . . . . . . . . . . . . . . . . . . . . . . . . Non-combat . | . . . . . . . . . . . . . . . . . . . . . . . . . . . . . . . . . . . Combat . | . . . . . . . . . . . . . . . . . . . . . . . . . . . . . . . . . . . Robot Hacks Applied . | . . . . . . . . . . . . . . . . . . . . . . . . . . . . . . . . . . . Relay Couplers Released 9 | . . . . . . . . 6 . . . . . . . . . . . . 3 . . . . . . . . . . . . . Machine Destruction 9 | . . . . . . . . 6 . . . . . . . . . . . . 3 . . . . . . . . . . . . . Fabnet Peak Effective % . | . . . . . . . . . . . . . . . . . . . . . . . . . . . . . . . . . . . Robots Rewired 12 | . . . . . . . . . . . . 2 . . . 10 . . . . . . . . . . . . . . . . . . Allies Hacked 1 | . . . . . . . . . . . . . . . . . . . . . . 1 . . . . . . . . . . . . Hacks Repelled . | . . . . . . . . . . . . . . . . . . . . . . . . . . . . . . . . . . . Allies | -11 -10 -10 -9 -9 -9 -8 -8 -8 -8 -7 -7 -7 -7 -6 -6 -6 -6 -6 -6 -5 -5 -5 -4 -4 -4 -4 -3 -3 -3 -3 -2 -2 -1 -1 -------- Run | Yrd Mat Min Mat Min Exi Min Mat Gar Mat Fac Low Low Zio Pro Fac Ext Cet Arc Hub Fac Gar Fac Fac Upp Upp Zhi Pro Res Arm Lab Res Qua Acc Com Total Allies 59 | . . . . . . . . . . . . 2 6 . 2 23 5 . 6 5 . 2 5 . . . . 1 1 . . . 1 . Largest Group 25 | . . . . . . . . . . . . 2 6 6 2 22 25 23 21 5 5 4 5 1 1 . . 1 1 . . . 1 . Highest-Rated Group 1255 | . . . . . . . . . . . . 48 200 200 170 999 1255 1199 1206 380 380 340 342 96 96 . . 29 28 . . . 269 . Highest-Rated Ally 269 | . . . . . . . . . . . . 32 39 39 85 159 151 96 96 85 85 85 96 96 96 . . 29 28 . . . 269 . Zionite Dispatches 17 | . . . . . . . . . . . . . . . 1 3 . . 2 2 . 1 4 . . . . 1 1 . . . 2 . Heavy 4 | . . . . . . . . . . . . . . . 1 1 . . . 1 . 1 . . . . . . . . . . . . Light 4 | . . . . . . . . . . . . . . . . 1 . . 1 1 . . 1 . . . . . . . . . . . Recon 2 | . . . . . . . . . . . . . . . . . . . . . . . 1 . . . . . . . . . 1 . Fire 1 | . . . . . . . . . . . . . . . . 1 . . . . . . . . . . . . . . . . . . Hacker 1 | . . . . . . . . . . . . . . . . . . . 1 . . . . . . . . . . . . . . . Experimental 1 | . . . . . . . . . . . . . . . . . . . . . . . . . . . . . . . . . 1 . Melee Resupply 2 | . . . . . . . . . . . . . . . . . . . . . . . 1 . . . . 1 . . . . . . Resource Resupply 1 | . . . . . . . . . . . . . . . . . . . . . . . 1 . . . . . . . . . . . Hacking Resupply 1 | . . . . . . . . . . . . . . . . . . . . . . . . . . . . . 1 . . . . . Initial Warlord ECA Mod 6 | . . . . . . . . . 6 5 5 5 5 . . . . . . . . . . . . . . . . . . . . . Total Orders 31 | . . . . . . . . . . . . . . . . . . . . . . . 6 8 1 . . 2 1 . . 2 . 11 STAY 3 | . . . . . . . . . . . . . . . . . . . . . . . 2 . . . . 1 . . . . . . DROP 4 | . . . . . . . . . . . . . . . . . . . . . . . 2 . . . . 1 1 . . . . . EXPLORE 15 | . . . . . . . . . . . . . . . . . . . . . . . 1 5 1 . . . . . . 1 . 7 RETURN 9 | . . . . . . . . . . . . . . . . . . . . . . . 1 3 . . . . . . . 1 . 4 Ally Attacks 539 | . . . . . . . . . . . . 12 . 41 1 106 33 25 189 . 44 19 37 1 19 . . . . . . . 12 . Total Damage 20437 | . . . . . . . . . . . . 343 . 1358 11 4082 1350 1071 6129 . 1252 680 2124 34 827 . . . . . . . 1176 . Kills 137 | . . . . . . . . . . . . 2 . 12 . 30 11 5 39 . 13 5 11 1 3 . . . . . . . 5 . Allies Corrupted 2 | . . . . . . . . . . . . . . . . . . . 1 . . . . . . . . . . . . . 1 . Allies Melted 1 | . . . . . . . . . . . . 1 . . . . . . . . . . . . . . . . . . . . . . Intel | -11 -10 -10 -9 -9 -9 -8 -8 -8 -8 -7 -7 -7 -7 -6 -6 -6 -6 -6 -6 -5 -5 -5 -4 -4 -4 -4 -3 -3 -3 -3 -2 -2 -1 -1 ------- Run | Yrd Mat Min Mat Min Exi Min Mat Gar Mat Fac Low Low Zio Pro Fac Ext Cet Arc Hub Fac Gar Fac Fac Upp Upp Zhi Pro Res Arm Lab Res Qua Acc Com Active Infowar (turns) 23368 | . . . . . . . . . 41 1283 993 1119 530 1069 407 52 636 778 622 246 . 377 1046 958 709 333 1031 809 629 373 693 7613 625 396 Optics 707 | . . . . . . . . . 41 666 . . . . . . . . . . . . . . . . . . . . . . . . Sensors 18657 | . . . . . . . . . . 617 993 1119 530 1069 405 52 636 778 543 244 . 377 623 958 709 333 1031 706 455 373 657 4854 593 2 Terrain 5321 | . . . . . . . . . . . . . . . 362 . . 363 345 246 . 369 606 . . . . 367 . . 406 1768 489 . Seismic 1 | . . . . . . . . . . . . . . . . . . . . . . . . . . . . . . . . 1 . . Jamming 11013 | . . . . . . . . . . . . . . . . . . . . . . . 348 . . 5 . 808 617 73 534 7609 625 394 Robot Analysis Total 4 | . . . . . . . . . . . . . . . . . . . . . . . . . . 4 . . . . . . . . Derelict Logs Recovered 8 | . . . . 2 . . . . . . . . . 2 . . . . . . . . . 2 2 . . . . . . . . . Drone Launches 14 | . . . . . . . . . . . . . . . . . . . . . . . 1 4 1 . . . . . . 1 . 7 Drone Recoveries 12 | . . . . . . . . . . . . . . . . . . . . . . . 1 3 1 . . . . . . 1 . 6 Zionite Intel Received 20 | . . . . . . . . . . . . . . . 4 . . . 1 . . 1 2 . . . . 2 . . . 3 . 7 Main Access 1 | . . . . . . . . . . . . . . . . . . . . . . 1 . . . . . . . . . . . . Emergency Access 2 | . . . . . . . . . . . . . . . . . . . 1 . . . . . . . . . . . . . . 1 Guard Positions 1 | . . . . . . . . . . . . . . . . . . . . . . . . . . . . . . . . . . 1 Component Stockpiles 2 | . . . . . . . . . . . . . . . . . . . . . . . 1 . . . . . . . . 1 . . Prototype Stockpiles 1 | . . . . . . . . . . . . . . . 1 . . . . . . . . . . . . . . . . . . . Unaware Schematics 1 | . . . . . . . . . . . . . . . . . . . . . . . . . . . . . . . . . . 1 Unaware Analyses 2 | . . . . . . . . . . . . . . . 1 . . . . . . . . . . . . 1 . . . . . . Trap Installations 1 | . . . . . . . . . . . . . . . . . . . . . . . . . . . . . . . . . . 1 Active Terminals 4 | . . . . . . . . . . . . . . . 1 . . . . . . . . . . . . 1 . . . 1 . 1 Active Garrisons 2 | . . . . . . . . . . . . . . . . . . . . . . . . . . . . . . . . 1 . 1 Depthwide Sectors/0 2 | . . . . . . . . . . . . . . . 1 . . . . . . . . . . . . . . . . . . 1 Depthwide Sectors/-1 1 | . . . . . . . . . . . . . . . . . . . . . . . 1 . . . . . . . . . . . Exploration | -11 -10 -10 -9 -9 -9 -8 -8 -8 -8 -7 -7 -7 -7 -6 -6 -6 -6 -6 -6 -5 -5 -5 -4 -4 -4 -4 -3 -3 -3 -3 -2 -2 -1 -1 ------------- Run | Yrd Mat Min Mat Min Exi Min Mat Gar Mat Fac Low Low Zio Pro Fac Ext Cet Arc Hub Fac Gar Fac Fac Upp Upp Zhi Pro Res Arm Lab Res Qua Acc Com Turns Passed 39017 | 93 749 307 1662 639 492 88 1380 1365 1427 1335 1041 1560 3119 1409 415 1036 636 786 791 246 605 403 1046 958 709 333 1031 809 629 373 693 7613 625 2614 Spaces Moved 18185 | 53 302 169 658 305 249 56 738 607 501 550 550 625 1239 755 211 460 292 328 373 131 316 211 492 517 339 180 482 311 239 168 357 3880 334 1207 Core 10 | 4 . . . . . . . . . . . . . . . . . . . . . . . . . . . . . . . . . 6 Treads 16063 | 49 302 169 146 . . . . 355 501 550 550 625 1239 755 211 460 292 328 373 131 316 211 492 517 339 180 482 311 239 168 357 3880 334 1201 Legs 971 | . . . 502 305 164 . . . . . . . . . . . . . . . . . . . . . . . . . . . . . Wheels 1141 | . . . 10 . 85 56 738 252 . . . . . . . . . . . . . . . . . . . . . . . . . . Hover . | . . . . . . . . . . . . . . . . . . . . . . . . . . . . . . . . . . . Flight . | . . . . . . . . . . . . . . . . . . . . . . . . . . . . . . . . . . . Fastest Speed 50 | 50 160 160 140 197 127 150 131 131 160 160 160 168 250 164 166 160 160 162 162 160 160 160 160 160 160 160 160 157 155 150 150 155 153 50 Average Speed 171 | 151 160 160 204 197 184 150 138 184 197 175 167 201 250 175 166 165 161 162 162 161 160 160 160 160 160 160 160 159 156 153 151 157 156 150 Slowest Speed 480 | 160 160 160 480 197 345 150 150 240 200 210 250 250 250 250 166 166 162 162 162 162 160 160 240 160 160 160 160 160 157 156 158 158 162 161 Overloaded Moves . | . . . . . . . . . . . . . . . . . . . . . . . . . . . . . . . . . . . Propulsion Burnouts . | . . . . . . . . . . . . . . . . . . . . . . . . . . . . . . . . . . . Robots Hopped . | . . . . . . . . . . . . . . . . . . . . . . . . . . . . . . . . . . . Potential Cave-ins 5 | . . . . . . . . . . . . . . . . . . . . . . . . . . . . . . . . . 2 3 Cave-ins Triggered . | . . . . . . . . . . . . . . . . . . . . . . . . . . . . . . . . . . . Teleports 1 | . . . . . . . . . . . . . . . . . . . . . . . . . . . . . 1 . . . . . Exploration Rate (%) 46 | 4 49 53 59 63 53 17 53 61 35 17 62 61 90 66 9 74 67 88 53 4 42 10 14 79 74 60 50 9 12 91 10 85 8 48 Regions Visited 34 Branch Regions 20 Pre-discovered Areas 24 | . . . . . 1 . . . . . 1 . 1 . 10 . . . . . . . 4 1 1 3 . . . . . . . 2 Known Exits Taken 24 | . . . . . . . 1 . . 1 1 1 1 1 1 1 1 1 1 1 . 1 1 1 1 1 1 1 1 1 1 1 1 . Unknown Exits Taken 8 | 1 1 1 1 1 1 1 . . 1 . . . . . . . . . . . . . . . . . . . . . . . . . Scrap Searched 9 | . . . . . . . . . . . . . 3 2 . . . . . . . . . 1 1 . 2 . . . . . . . Spaces Dug 107 | . . . 1 . . . 1 . 10 7 8 . . . 4 4 . . 7 2 . . 4 . 1 . . 9 3 . 4 15 9 18 Terrain Destroyed 1215 | . . . 38 22 . . 15 38 10 21 12 . . . 4 13 3 1 356 2 21 . 58 16 5 . 56 54 47 . 4 64 9 346 Melee 106 | . . . 1 . . . 1 . 10 7 8 . . . 4 4 . . 7 2 . . 4 . . . . 9 3 . 4 15 9 18 Projectile 52 | . . . . . . . . . . . . . . . . 9 3 1 16 . . . . 2 4 . . . 17 . . . . . AOE 1055 | . . . 37 22 . . 14 38 . 14 4 . . . . . . . 333 . 21 . 53 14 . . 56 45 27 . . 49 . 328 Terrain Rammed . | . . . . . . . . . . . . . . . . . . . . . . . . . . . . . . . . . . . Walls Destroyed . | . . . . . . . . . . . . . . . . . . . . . . . . . . . . . . . . . . . Machines Disabled . | . . . . . . . . . . . . . . . . . . . . . . . . . . . . . . . . . . . Actions | -11 -10 -10 -9 -9 -9 -8 -8 -8 -8 -7 -7 -7 -7 -6 -6 -6 -6 -6 -6 -5 -5 -5 -4 -4 -4 -4 -3 -3 -3 -3 -2 -2 -1 -1 --------- Run | Yrd Mat Min Mat Min Exi Min Mat Gar Mat Fac Low Low Zio Pro Fac Ext Cet Arc Hub Fac Gar Fac Fac Upp Upp Zhi Pro Res Arm Lab Res Qua Acc Com Total 23895 | 63 441 186 853 320 284 57 999 781 847 777 625 835 1257 835 260 655 429 538 489 159 370 241 672 608 455 224 735 500 401 277 447 5275 399 1601 Wait 2767 | . 52 6 47 1 . . 113 35 169 87 31 128 3 51 22 7 58 149 16 1 20 2 31 59 69 5 239 52 27 89 25 1082 9 82 Move 18146 | 52 301 168 657 304 248 55 737 603 500 549 549 624 1238 754 210 459 291 327 372 130 313 210 491 516 338 179 481 310 238 167 356 3879 333 1207 Hop . | . . . . . . . . . . . . . . . . . . . . . . . . . . . . . . . . . . . Pick Up 425 | 4 14 1 30 . 24 . 32 39 34 18 . 1 5 6 6 14 14 3 10 7 2 1 21 4 5 6 1 19 16 6 7 57 3 15 Fast Attach 240 | 6 2 . 5 . 5 . 7 2 1 5 4 2 2 1 . 15 4 11 11 2 1 2 21 . 2 7 2 4 18 2 7 38 15 36 Attach 157 | . 2 . 5 . . . 2 8 5 11 8 4 . 1 2 3 5 2 6 2 1 . 12 . 5 5 . 15 9 1 4 17 2 20 Detach 40 | . . . 2 . . . . . . 1 . 1 . 1 . 3 . . 4 1 . . 8 . 1 4 . 4 5 . 1 2 . 2 Swap 281 | . 2 . 12 2 . . 5 8 11 5 6 8 6 14 6 14 14 4 13 8 9 9 10 7 5 3 4 11 7 . 8 39 5 26 Drop 530 | 1 4 1 22 . 7 . 32 12 44 16 2 2 2 6 4 31 24 14 19 5 3 3 38 4 4 12 3 18 29 6 10 91 15 46 Fire 328 | . 64 10 6 2 . . 3 10 . 3 2 . . . . 26 13 5 29 . 20 14 27 18 22 . 5 7 29 . . 5 . 8 Melee 874 | . . . 67 11 . 2 68 44 82 82 23 49 1 1 10 17 6 23 9 3 1 . 13 . 3 3 . 60 23 6 29 65 17 156 Ram . | . . . . . . . . . . . . . . . . . . . . . . . . . . . . . . . . . . . Kick . | . . . . . . . . . . . . . . . . . . . . . . . . . . . . . . . . . . . Crush 3 | . . . . . . . . . 1 . . . . . . . . . . . . . . . . . . . . . . . . 2 Escape Stasis 20 | . . . . . . . . 20 . . . . . . . . . . . . . . . . . . . . . . . . . . Rewire 84 | . . . . . . . . . . . . 16 . . . 66 . . . . . . . . 1 . . . . . . . . 1 Trap . | . . . . . . . . . . . . . . . . . . . . . . . . . . . . . . . . . . . Miscellaneous . | . . . . . . . . . . . . . . . . . . . . . . . . . . . . . . . . . . . Route ------- -11/Scrapyard -10/Materials (discovered 2 exits: *Mat / [*Min]) -10/Mines -9/Materials (discovered 3 exits: *Mat / [*Min x2]) -9/Mines (discovered 2 exits: *Mat / *Exi) -9/Exiles -8/Mines -8/Materials (discovered 3 exits: *Fac x2 / Gar) -8/Garrison (discovered 3 exits: *Mat x3) -8/Materials -7/Factory (discovered 2 exits: *Low x2) -7/Lower Caves -7/Lower Caves -7/Zion -6/Proximity Caves -6/Factory (discovered 3 exits: *Fac / [Low] / *Ext) -6/Extension (discovered 2 exits: *Fac / *Cet) -6/Cetus (discovered 2 exits: *Fac / *Arc) -6/Archives (discovered 3 exits: *Fac / *Hub x2) -6/Hub_04(d) (discovered 3 exits: *Fac x3) -5/Factory -5/Garrison (discovered 3 exits: *Fac x3) -5/Factory (discovered 4 exits: *Fac x4) -4/Factory -4/Upper Caves -4/Upper Caves (discovered 2 exits: *Res / *Zhi) -4/Zhirov -3/Proximity Caves -3/Research (discovered 2 exits: Res / *Arm) -3/Armory -3/Lab -2/Research -2/Quarantine -1/Access -1/Command History --------- Turn | Location | Event 2 | -11/Scrapyard | Met Revision 17 7 | -11/Scrapyard | Discovered new exit (range 15) 94 | -11/Scrapyard | Entered Materials 300 | -10/Materials | Build established: Mutant 361 | -10/Materials | Discovered new exit (range 9) 805 | -10/Materials | Discovered new exit (range 9) 843 | -10/Materials | Entered Mines 945 | -10/Mines | YI-UF0 nonchalantly dropped a Grenade Launcher on the ground 1142 | -10/Mines | Discovered new exit (range 5) 1150 | -10/Mines | Entered Materials 1150 | -9/Materials | Evolved 2 slots: Propulsion x2 1900 | -9/Materials | Discovered new exit (range 16) 2200 | -9/Materials | Discovered new exit (range 15) 2404 | -9/Materials | Discovered new exit (range 8) 2812 | -9/Materials | Entered Mines 2850 | -9/Mines | Met a Derelict bent on vengeance 3053 | -9/Mines | Learned Materials security intel 3213 | -9/Mines | Discovered new exit (range 14) 3441 | -9/Mines | Deemed a non-threat by the Exiles lab entrance 3443 | -9/Mines | Discovered new exit (range 5) 3451 | -9/Mines | Entered Exiles 3497 | -9/Exiles | Met 8R-AWN 3534 | -9/Exiles | Met EX-HEX 3591 | -9/Exiles | Met EX-BIN 3633 | -9/Exiles | Met EX-DEC 3645 | -9/Exiles | Learned location of Zion (-7) 3925 | -9/Exiles | Discovered new exit (range 14) 3943 | -9/Exiles | Entered Mines 4021 | -8/Mines | Discovered new exit (range 8) 4031 | -8/Mines | Entered Materials 4031 | -8/Materials | Evolved 2 slots: Propulsion x1, Utility x1 4049 | -8/Materials | Build established: Hauler-Mutant 4531 | -8/Materials | Discovered new exit (range 15) 5054 | -8/Materials | Discovered new exit (range 16) 5232 | -8/Materials | Central database locked down 5400 | -8/Materials | Identified exit to Garrison 5411 | -8/Materials | Entered Garrison 5427 | -8/Garrison | Triggered checkpoint 5497 | -8/Garrison | Triggered checkpoint 5657 | -8/Garrison | Triggered checkpoint 5674 | -8/Garrison | Garrison Relay disabled 5746 | -8/Garrison | Discovered new exit (range 12) 5762 | -8/Garrison | Attempted to access garrison exit controls, blocked by remote lockdown 5889 | -8/Garrison | Triggered checkpoint 6243 | -8/Garrison | Triggered checkpoint 6297 | -8/Garrison | Lost 5 parts (1p3u1w) 6308 | -8/Garrison | Discovered new exit (range 15) 6447 | -8/Garrison | Garrison Relay disabled 6586 | -8/Garrison | Attempted to access garrison exit controls, blocked by remote lockdown 6663 | -8/Garrison | Triggered checkpoint 6754 | -8/Garrison | Discovered new exit (range 12) 6776 | -8/Garrison | Entered Materials 7267 | -8/Materials | Discovered new exit (range 16) 8138 | -8/Materials | Repaired Cargo Storage Unit 8203 | -8/Materials | Entered Factory 8203 | -7/Factory | Evolved 2 slots: Utility x1, Weapon x1 8204 | -7/Factory | Identified exit to Lower Caves 8451 | -7/Factory | Build established: Scavenger-Mutant 8773 | -7/Factory | Discovered exit to Lower Caves (range 5) 8801 | -7/Factory | Garrison activated, responded to threat 9538 | -7/Factory | Entered Lower Caves 9548 | -7/Lower Caves | Met a Warlord Commander 9549 | -7/Lower Caves | Learned location of Warlord (-5) 9550 | -7/Lower Caves | Warlord Commander delivered Encrypted Comm Array 9557 | -7/Lower Caves | Found Encrypted Comm Array 9765 | -7/Lower Caves | Lost 6 parts (5n1w) 9958 | -7/Lower Caves | Build established: Mutant 10049 | -7/Lower Caves | Attracted the attention of an 0b10 checkpoint 10519 | -7/Lower Caves | Discovered new exit (range 8) 10532 | -7/Lower Caves | Identified exit to Lower Caves 10579 | -7/Lower Caves | Entered another Lower Caves area 10591 | -7/Lower Caves | Encountered a Warlord checkpoint 11250 | -7/Lower Caves | Attracted the attention of an 0b10 outpost 11809 | -7/Lower Caves | Discovered new exit (range 14) 11839 | -7/Lower Caves | Identified exit to Zion 12139 | -7/Lower Caves | Entered Zion 12289 | -7/Zion | Found CR-A16's Pointy Stick 12410 | -7/Zion | Discovered new exit (range 15) 12730 | -7/Zion | Gained Derelict followers 13341 | -7/Zion | Learned Factory emergency access door positions 13936 | -7/Zion | Acquired unknown access codes intercepted by a Zionite 14454 | -7/Zion | Met Imprinter 14496 | -7/Zion | Imprinted 14499 | -7/Zion | Declared Zion's savior 15251 | -7/Zion | Identified exit to Proximity Caves 15258 | -7/Zion | Entered Proximity Caves 15258 | -6/Proximity Caves | Accompanied by 6 allies 15263 | -6/Proximity Caves | Learned location of 1 exit from Lower Caves 15283 | -6/Proximity Caves | Learned Factory security intel 15422 | -6/Proximity Caves | Spotted B-75 Beast 15528 | -6/Proximity Caves | Spotter reported a threat 15778 | -6/Proximity Caves | Discovered new exit (range 14) 16339 | -6/Proximity Caves | Build established: Derelict-Mutant 16480 | -6/Proximity Caves | System corruption reached 10% 16658 | -6/Proximity Caves | Identified exit to Factory 16667 | -6/Proximity Caves | Entered Factory 16667 | -6/Factory | Accompanied by 1 ally 16667 | -6/Factory | Evolved 2 slots: Propulsion x1, Utility x1 16735 | -6/Factory | Retrieved Zion intel report: Active Terminals 16839 | -6/Factory | Retrieved Zion intel report: Depthwide Sectors/-6 16873 | -6/Factory | Discovered new exit (range 14) 16876 | -6/Factory | Retrieved Zion intel report: Prototype Stockpiles 16961 | -6/Factory | Discovered new exit (range 16) 16984 | -6/Factory | Garrison activated, responded to threat 17016 | -6/Factory | Retrieved Zion intel report: Unaware Analyses 17017 | -6/Factory | Zion Heavy squad teleported in 17020 | -6/Factory | Build established: Derelict-Assassin 17024 | -6/Factory | Discovered new exit (range 18) 17080 | -6/Factory | Identified exit to Extension 17082 | -6/Factory | Entered Extension 17082 | -6/Extension | Accompanied by 2 allies 17182 | -6/Extension | Rescued a captive Derelict 17185 | -6/Extension | Rescued a captive Derelict 17244 | -6/Extension | Zion Heavy squad teleported in 17293 | -6/Extension | Rescued a captive Derelict 17344 | -6/Extension | Rescued A7 17397 | -6/Extension | Zion Light squad teleported in 17410 | -6/Extension | Spotted B-75 Beast 17427 | -6/Extension | Spotted B-75 Beast 17435 | -6/Extension | Allies destroyed B-75 Beast 17445 | -6/Extension | Allies destroyed B-75 Beast 17447 | -6/Extension | Build established: Mutant 17594 | -6/Extension | Zion Fire squad teleported in 17755 | -6/Extension | Build established: Messiah-Tank 18006 | -6/Extension | Discovered new exit (range 10) 18017 | -6/Extension | Discovered new exit (range 6) 18027 | -6/Extension | Disrupted transfer network 18054 | -6/Extension | Found Prototype Protection 18054 | -6/Extension | Identified Zio. Weapon Casing 18095 | -6/Extension | Identified exit to Cetus 18102 | -6/Extension | Identified exit to Factory 18118 | -6/Extension | Entered Cetus 18118 | -6/Cetus | Accompanied by 21 allies (A7) 18123 | -6/Cetus | Acquired a Cetus Manufacturing Module code from A7 18138 | -6/Cetus | Spotted Cetus Guard 18138 | -6/Cetus | Spotted Cetus Guard 18140 | -6/Cetus | Allies destroyed Cetus Guard 18141 | -6/Cetus | Spotted Cetus Guard 18145 | -6/Cetus | Allies destroyed Cetus Guard 18146 | -6/Cetus | Spotted Cetus Guard 18161 | -6/Cetus | Allies destroyed Cetus Guard 18161 | -6/Cetus | Destroyed Cetus Guard 18294 | -6/Cetus | Started Cetus Manufacturing Module 18311 | -6/Cetus | Escorted A7 to Cetus Mainframe 18319 | -6/Cetus | Manufactured an Enhanced Grunt 18333 | -6/Cetus | Discovered new exit (range 16) 18344 | -6/Cetus | Manufactured an Enhanced Grunt 18369 | -6/Cetus | Manufactured an Enhanced Grunt 18392 | -6/Cetus | Murdered A7 18394 | -6/Cetus | Manufactured an Enhanced Grunt 18397 | -6/Cetus | Extracted ID and sensor layout for unrecognized location from A7's data core 18419 | -6/Cetus | Manufactured an Enhanced Grunt 18426 | -6/Cetus | Spotted Cetus Guard 18426 | -6/Cetus | Spotted Cetus Guard 18429 | -6/Cetus | Allies destroyed Cetus Guard 18429 | -6/Cetus | Spotted Cetus Guard 18430 | -6/Cetus | Spotted Cetus Guard 18431 | -6/Cetus | Allies destroyed Cetus Guard 18436 | -6/Cetus | Allies destroyed Cetus Guard 18438 | -6/Cetus | Allies destroyed Cetus Guard 18446 | -6/Cetus | Discovered exit to Factory (range 16) 18456 | -6/Cetus | Scared off Revision 17 18706 | -6/Cetus | Identified exit to Archives 18754 | -6/Cetus | Entered Archives 18754 | -6/Archives | Accompanied by 23 allies 18809 | -6/Archives | Lost 7 allies 18937 | -6/Archives | Discovered new exit (range 16) 18965 | -6/Archives | Discovered new exit (range 13) 19025 | -6/Archives | Discovered exit to Factory (range 14) 19295 | -6/Archives | Identified exit to Hub_04(d) 19476 | -6/Archives | Build established: Commander-Skirmisher 19540 | -6/Archives | Entered Hub_04(d) 19540 | -6/Hub_04(d) | Accompanied by 16 allies 19556 | -6/Hub_04(d) | Zion Light squad teleported in 19557 | -6/Hub_04(d) | Discovered exit to Factory (range 15) 19743 | -6/Hub_04(d) | Zion Hacker squad teleported in 19793 | -6/Hub_04(d) | Discovered exit to Factory (range 17) 19929 | -6/Hub_04(d) | Lost 5 allies 19947 | -6/Hub_04(d) | Discovered exit to Factory (range 8) 20067 | -6/Hub_04(d) | Network Hub disabled 20092 | -6/Hub_04(d) | System corruption reached 10% 20117 | -6/Hub_04(d) | Retrieved Zion intel report: Emergency Access 20179 | -6/Hub_04(d) | Spotted Lightning 20179 | -6/Hub_04(d) | Spotted Lightning 20180 | -6/Hub_04(d) | Spotted Lightning 20192 | -6/Hub_04(d) | High security lockdown imminent 20192 | -6/Hub_04(d) | Destroyed Lightning 20199 | -6/Hub_04(d) | Network Hub disabled 20205 | -6/Hub_04(d) | Allies destroyed Lightning 20207 | -6/Hub_04(d) | Allies destroyed Lightning 20246 | -6/Hub_04(d) | Lost 9 allies 20272 | -6/Hub_04(d) | High security lockdown engaged 20317 | -6/Hub_04(d) | Lost 3 allies 20331 | -6/Hub_04(d) | Entered Factory 20331 | -5/Factory | Evolved 2 slots: Utility x2 20394 | -5/Factory | Zion Light squad teleported in 20432 | -5/Factory | Zion Heavy squad teleported in 20560 | -5/Factory | Identified exit to Garrison 20577 | -5/Factory | Entered Garrison 20577 | -5/Garrison | Accompanied by 5 allies 20611 | -5/Garrison | Triggered checkpoint 20671 | -5/Garrison | Garrison Relay disabled 20735 | -5/Garrison | Spotted B-75 Beast 20753 | -5/Garrison | Destroyed B-75 Beast 20753 | -5/Garrison | Triggered checkpoint 20755 | -5/Garrison | Triggered checkpoint 20775 | -5/Garrison | Triggered checkpoint 20781 | -5/Garrison | Found Zio. Weapon Casing 20860 | -5/Garrison | Discovered new exit (range 12) 20876 | -5/Garrison | Build established: Scavenger-Tank 20886 | -5/Garrison | Attempted to access garrison exit controls, blocked by remote lockdown 20973 | -5/Garrison | Triggered checkpoint 21034 | -5/Garrison | Discovered new exit (range 10) 21063 | -5/Garrison | Attempted to access garrison exit controls, blocked by remote lockdown 21165 | -5/Garrison | Discovered new exit (range 11) 21182 | -5/Garrison | Entered Factory 21182 | -5/Factory | Accompanied by 4 allies 21468 | -5/Factory | Build established: Scavenger-Skirmisher 21499 | -5/Factory | Retrieved Zion intel report: Main Access 21499 | -5/Factory | Identified exit to Factory 21506 | -5/Factory | Zion Heavy squad teleported in 21551 | -5/Factory | Lost 3 allies 21585 | -5/Factory | Entered another Factory area 21585 | -4/Factory | Accompanied by 3 allies 21585 | -4/Factory | Evolved 2 slots: Propulsion x1, Utility x1 21854 | -4/Factory | Garrison activated, responded to threat 21959 | -4/Factory | Build established: Scavenger-Tank 21972 | -4/Factory | Found Zio. Weapon Casing 21992 | -4/Factory | Lost 3 allies 22061 | -4/Factory | Retrieved Zion intel report: Component Stockpiles 22088 | -4/Factory | Retrieved Zion intel report: Depthwide Sectors/-3 22089 | -4/Factory | Zion Melee Resupply teleported in 22250 | -4/Factory | Zion Resource Resupply teleported in 22345 | -4/Factory | Zion Recon squad teleported in 22381 | -4/Factory | Build established: Scavenger-Gladiator 22390 | -4/Factory | Discovered new exit (range 9) 22403 | -4/Factory | Identified exit to Upper Caves 22433 | -4/Factory | Zion Light squad teleported in 22435 | -4/Factory | Spotted B-86 Titan 22443 | -4/Factory | Allies destroyed B-86 Titan 22481 | -4/Factory | Fabricated Cargo Storage Unit (x1) 22485 | -4/Factory | Allied Derelicts emerged from ambush trap array 22548 | -4/Factory | Found Unknown Protection 22548 | -4/Factory | Identified Hvy. Insulated Plating 22614 | -4/Factory | Lost 5 allies 22631 | -4/Factory | Entered Upper Caves 22631 | -4/Upper Caves | Accompanied by 1 ally 22771 | -4/Upper Caves | Build established: Hauler-Tank 22868 | -4/Upper Caves | Learned Research stockpile data 23072 | -4/Upper Caves | Entered a destroyed Warlord outpost 23256 | -4/Upper Caves | Discovered new exit (range 39) 23315 | -4/Upper Caves | Identified exit to Upper Caves 23589 | -4/Upper Caves | Entered another Upper Caves area 23589 | -4/Upper Caves | Accompanied by 1 ally 23589 | -4/Upper Caves | Spotted B-86 Titan 23603 | -4/Upper Caves | Allies destroyed B-86 Titan 23634 | -4/Upper Caves | Learned 4 Research zone layouts 23640 | -4/Upper Caves | Discovered new exit (range 14) 23662 | -4/Upper Caves | Identified exit to Research 23928 | -4/Upper Caves | Learned location of Quarantine (-2) 24290 | -4/Upper Caves | Discovered new exit (range 5) 24296 | -4/Upper Caves | Identified exit to Zhirov 24298 | -4/Upper Caves | Entered Zhirov 24300 | -4/Zhirov | Discovered new exit (range 3) 24329 | -4/Zhirov | Met Zhirov 24366 | -4/Zhirov | Learned location of Command (-1) 24375 | -4/Zhirov | Zhirov requested help retrieving the SGEMP Prototype 24400 | -4/Zhirov | Found Alien Artifact 24400 | -4/Zhirov | Identified Integrated Reactor 24400 | -4/Zhirov | Installed Integrated Reactor, increased core energy generation (+10) 24425 | -4/Zhirov | Found Alien Artifact 24628 | -4/Zhirov | Identified exit to Proximity Caves 24631 | -4/Zhirov | Entered Proximity Caves 24712 | -3/Proximity Caves | Build established: Hauler-Gladiator 25363 | -3/Proximity Caves | Received a Behemoth hack from an annoying Tinkerer 25640 | -3/Proximity Caves | Discovered exit to Research (range 7) 25662 | -3/Proximity Caves | Entered Research 25662 | -3/Research | Evolved 2 slots: Propulsion x1, Weapon x1 25663 | -3/Research | Identified exit to Research 25739 | -3/Research | Retrieved Zion intel report: Active Terminals 25740 | -3/Research | Zion Melee Resupply teleported in 26020 | -3/Research | Retrieved Zion intel report: Unaware Analyses 26043 | -3/Research | Build established: Hauler-Assassin 26145 | -3/Research | Discovered new exit (range 21) 26224 | -3/Research | Lost 3 parts (1p2u) 26266 | -3/Research | Identified exit to Armory 26421 | -3/Research | Build established: Hauler-Gladiator 26471 | -3/Research | Entered Armory 26530 | -3/Armory | Found Gamma Bomb Array 26534 | -3/Armory | Found Gamma Bomb Array 26605 | -3/Armory | Found Gamma Bomb Array 26608 | -3/Armory | Found Gamma Bomb Array 27063 | -3/Armory | Zion Hacking Resupply teleported in 27073 | -3/Armory | Found Exp. Hacking Suite 27077 | -3/Armory | Identified Transdimensional Reconstructor 27077 | -3/Armory | Warped through subspace to slip node 27077 | -3/Armory | Discovered new exit (range 1) 27077 | -3/Armory | Identified exit to Lab 27100 | -3/Armory | Entered Lab 27100 | -3/Lab | Discovered exit to Research (range 9) 27118 | -3/Lab | Hidden lab's door opened automatically 27118 | -3/Lab | Sensor layout match revealed 27119 | -3/Lab | Gained access to the hidden lab's interior 27173 | -3/Lab | Found Integrated Reactor 27173 | -3/Lab | Installed Integrated Reactor, increased core energy generation (+10) 27190 | -3/Lab | Found Transdimensional Reconstructor 27205 | -3/Lab | Found Alien Artifact 27227 | -3/Lab | Found Alien Artifact 27268 | -3/Lab | Found Prototype Hackware 27272 | -3/Lab | Found Prototype Device 27272 | -3/Lab | Identified AEGIS Remote Shield 27315 | -3/Lab | Found Prototype Special Weapon 27473 | -3/Lab | Entered Research 27473 | -2/Research | Evolved 2 slots: Utility x1, Weapon x1 27892 | -2/Research | Discovered new exit (range 10) 27995 | -2/Research | Spotted B-90 Cyclops 28017 | -2/Research | Destroyed B-90 Cyclops 28059 | -2/Research | Identified exit to Quarantine 28166 | -2/Research | Entered Quarantine 28197 | -2/Quarantine | Cryocooling Duct disabled 28205 | -2/Quarantine | Cryocooling Duct disabled 28212 | -2/Quarantine | Ambient heat levels rising (+20) 28212 | -2/Quarantine | Non-combat units ordered to evacuate 28220 | -2/Quarantine | Ambient heat levels rising (+20) 28220 | -2/Quarantine | Combat units ordered to evacuate 28320 | -2/Quarantine | Quarantine Guard activated 28388 | -2/Quarantine | Spotted Quarantine Guard 28617 | -2/Quarantine | Spotted Quarantine Guard 28657 | -2/Quarantine | Destroyed Quarantine Guard 28790 | -2/Quarantine | Retrieved Zion intel report: Active Terminals 28805 | -2/Quarantine | Retrieved Zion intel report: Active Garrisons 29325 | -2/Quarantine | Retrieved Zion intel report: Component Stockpiles 29400 | -2/Quarantine | Destroyed Quarantine Guard 29492 | -2/Quarantine | Terminal network hard line cut 29546 | -2/Quarantine | Spotted Quarantine Guard 29574 | -2/Quarantine | Destroyed Quarantine Guard 29624 | -2/Quarantine | Found Alien Slashing Weapon 29624 | -2/Quarantine | Identified Sigix Broadsword 29743 | -2/Quarantine | Identified Core Expander 29743 | -2/Quarantine | Installed Core Expander, added new Propulsion slot 29749 | -2/Quarantine | Identified Core Reset Matrix 29964 | -2/Quarantine | Spotted Quarantine Guard 30005 | -2/Quarantine | Destroyed Quarantine Guard 30018 | -2/Quarantine | Spotted Quarantine Guard 30062 | -2/Quarantine | Destroyed Quarantine Guard 30083 | -2/Quarantine | Spotted Quarantine Guard 30113 | -2/Quarantine | Destroyed Quarantine Guard 30157 | -2/Quarantine | Spotted Quarantine Guard 30169 | -2/Quarantine | Destroyed Quarantine Guard 30319 | -2/Quarantine | Found Prototype Launcher 30436 | -2/Quarantine | Identified Deep Network Scanner 30440 | -2/Quarantine | Identified Tactical Quantum Warhead 30577 | -2/Quarantine | Found Tactical Quantum Warhead 30684 | -2/Quarantine | Spotted Quarantine Guard 30714 | -2/Quarantine | Destroyed Quarantine Guard 31410 | -2/Quarantine | Discovered new exit (range 4) 31410 | -2/Quarantine | Spotted Quarantine Guard 31412 | -2/Quarantine | Spotted Quarantine Guard 31417 | -2/Quarantine | Destroyed Quarantine Guard 31421 | -2/Quarantine | Identified exit to Access 31430 | -2/Quarantine | Destroyed Quarantine Guard 31620 | -2/Quarantine | Found Alien Impact Weapon 31624 | -2/Quarantine | Identified Core Stripper 31715 | -2/Quarantine | Found Alien Artifact 31892 | -2/Quarantine | Repaired Phasing Sabre 32029 | -2/Quarantine | Identified Gui. Remote Datajack 32548 | -2/Quarantine | Repaired Broken Terrain Scanner 32628 | -2/Quarantine | Found Core Reset Matrix 32628 | -2/Quarantine | Identified Terrabomb 32628 | -2/Quarantine | Used Core Reset Matrix 32632 | -2/Quarantine | Detected hypermatrix surge 32632 | -2/Quarantine | Sensed 8 artifacts in vicinity 32746 | -2/Quarantine | Found Subatomic Replicator 32898 | -2/Quarantine | Found Core Cannon 32937 | -2/Quarantine | Build established: Alien-Gladiator 33266 | -2/Quarantine | Repaired Nanosword 33346 | -2/Quarantine | Found Matter Drive 33864 | -2/Quarantine | Repaired Adv. Heavy Treads 34666 | -2/Quarantine | System corruption reached 10% 35140 | -2/Quarantine | Central database locked down 35313 | -2/Quarantine | Discovered exit to Access (range 9) 35779 | -2/Quarantine | Entered Access 35779 | -1/Access | Evolved 2 slots: Power x1, Propulsion x1 35797 | -1/Access | Zion Recon squad teleported in 36103 | -1/Access | Zion Experimental squad teleported in 36249 | -1/Access | Found Prototype Protection 36249 | -1/Access | Identified Zio. Shade Armor 36257 | -1/Access | System corruption reached 10% 36330 | -1/Access | Discovered new exit (range 8) 36338 | -1/Access | Identified exit to Command 36404 | -1/Access | Entered Command 36607 | -1/Command | Retrieved Zion intel report: Trap Installations 36878 | -1/Command | Retrieved Zion intel report: Guard Positions 37500 | -1/Command | Retrieved Zion intel report: Emergency Access 37563 | -1/Command | Retrieved Zion intel report: Unaware Schematics 37724 | -1/Command | Retrieved Zion intel report: Depthwide Sectors/-1 37734 | -1/Command | Retrieved Zion intel report: Active Garrisons 37756 | -1/Command | Retrieved Zion intel report: Active Terminals 37868 | -1/Command | Terminal network hard line cut 37868 | -1/Command | Spotted B-99 Colossus 37957 | -1/Command | Destroyed B-99 Colossus 37978 | -1/Command | Lost 4 parts (1p1u2w) 38215 | -1/Command | Build established: Hauler-Gladiator 38654 | -1/Command | First assault squad dispatched 38678 | -1/Command | Lost 4 parts (1p3n) 38822 | -1/Command | Destroyed 12 combat bots 38953 | -1/Command | Spotted M Guard 38954 | -1/Command | Spotted Combat Programmer 38954 | -1/Command | Spotted Combat Programmer 38955 | -1/Command | Spotted M Guard 39008 | -1/Command | Core integrity fell below 50% 39013 | -1/Command | Released all parts (6) 39014 | -1/Command | Emitted hypermatrix ping 39014 | -1/Command | Failed to warp due to unstable space 39016 | -1/Command | Core integrity fell below 20% 39016 | -1/Command | System corruption reached 30% 39018 | -1/Command | Destroyed by P-80 Master with Gamma Rifle Last Messages --------------- 39013_ Combat Programmer resets M Guard, system corruption cleaned. 39013_ Adv. Actuator Array destroyed. 39013_ Knocked back. 39013_ Rnf. Quantum Reactor+ destroyed. 39013_ Released Force Lance+. 39013_ Released Cargo Storage Unit. 39013_ Released Nanosword. 39013_ Released Enh. Force Lance. 39013_ Released Imp. Dynamic Insulation System. 39014_ Emitted hypermatrix ping. 39014_ Acquired Transdimensional Reconstructor. 39014_ Warp failed due to unstable space. 39014_ Penetrated by EMDS Slug. 39016_ Combat Programmer fries systems beyond repair. 39016_ Combat Programmer destroyed. 39018_ The unstable cave ceiling collapses. 39018_ Penetrated by EMDS Slug. Map ----- +----------------------------------------------------+ | ?????????????????????????????????????????????????? | | ?????????????????????????????????????????????????? | | ?????????????????????????????????????????????????? | | ?????????????????????????????????????????????????? | | ?????????????????????????????????????????????????? | | ?????????????????????????????????????????????????? | | ?????????????????????????????????????????????????? | | ?????????????????????????????????????????????????? | | ?????????????????????????????????????????????????? | | ?????????????????????????????????????????????????? | | ?????????????????????????????????????????????????? | | ???????????????????????????????????#?????????????? | | ?????????????????????????????????? ##????????????? | | ??????????????????????####??##### # #### ###????? | | ??????????????????????# ### # #????? | | ???????????????#+++#### W W ###### | | ???????????????# + | | ???????????????# + | | ???????????????# p p + | | ???????????????# p + | | ???????????????# !% + | | ????????????????????## ! ! W W # ###### | | ????????????????????# #????? | | ????????????????????# # # ## ##????? | | ????????????????????# ####??????????? | | ????????????????????# @ ## ##?????????????? | | ????????????????????# ##?# #???????????### | | ????????????????????## ##???# #??????????# | | ?????????????????????## #????# #?????????# | | ??????????????????????# ## ##?????# ?????????# | | ??????????????????????# #?##???????? ????????# | | ??????????????????????# #???????????? ???????# | | ??????????????????????# #????????????????????# | | ??????????????????????# #????????????????????# | | ??????????????????????# #????????????????????# | | ??????????????????????# ??????????????????####+# | | ??????????????????????# ??????????????????# | | ??????????????????????# ??????????????????# | | ??????????????????????# ??????????????????# | | ??????????????????????#;##??????????????????# | | ??????????????????????? ????????????????????# | | ????????????????????????????????????????????# ### | | ????????????????????????????????????????????# #?? | | ????????????????????????????????????????????# #?? | | ????????????????????????????????????????????# #?? | | ????????????????????????????????????????????# #?? | | ????????????????????????????????????????????# #?? | | ????????????????????????????????????????????# #?? | | ????????????????????????????????????????????# #?? | | ????????????????????????????????????????????# #?? | +----------------------------------------------------+ Best States ------------- Heat Dissipation 83 Coolant Potential 65 Energy Generation 69 Energy Capacity 825 Matter Stores 435 Matter Capacity 500 Sight Range 20 Robot Scan Range 16 Terrain Scan Range 24 Terrain Scan Density 210 Jamming Range 14 Additional Mass Support 25 EM Shielding 6 Armor Coverage 1200 Resistance: KI 30 Resistance: TH 30 Resistance: EX 30 Resistance: EM 30 Resistance: I 30 Resistance: S 30 Resistance: P 30 Power Shielding 90 Propulsion Shielding 66 Weapon Shielding 100 Point Defense Rating 720 Evasion (%) 50 Targeting Accuracy 20 Melee Accuracy 8 Launcher Accuracy 40 Target Analysis 8 Core Analysis 6 Recoil Reduction 10 Offensive Hacking 12 Defensive Hacking 14 Item Schematics ----------------- None Robot Schematics ------------------ A-02 Transporter | -1/Command | Z-intel E-15 Imp | -1/Command | Z-intel K-01 Serf | -1/Command | Z-intel A-15 Conveyor | -1/Command | Z-intel Fabricated ------------ Cargo Storage Unit | x1 | -4/Factory Repaired ---------- Cargo Storage Unit | 89% | -8/Materials Phasing Sabre | 20% | -2/Quarantine Terrain Scanner | 75% | -2/Quarantine | Broken Nanosword | 38% | -2/Quarantine Adv. Heavy Treads | 28% | -2/Quarantine Studied --------- Force Lance | -2/Quarantine | Hacked Adv. Heavy Siege Treads | -2/Quarantine | Hacked Adv. Heavy Treads | -2/Quarantine | Hacked Rnf. Quantum Reactor | -2/Quarantine | Hacked Alien Tech Used ----------------- Integrated Reactor Transdimensional Reconstructor Sigix Broadsword Core Expander Core Stripper Core Reset Matrix Matter Drive Achievements -------------- None Challenges ------------ None Game ------ Seed TitaniumZipWeb Manual? 0 Play Time 04:46:21 Cumulative 520.9 hours Start 2026.08.03 @ 17:56:59 End 2026.08.03 @ 23:51:22 Sessions 1 Manual Loads 0 Difficulty Rogue Special Mode None Game No. 464 Rogue 464 Adventurer 0 Explorer 0 Win Type - Total 13 Types 7/0/3/1/0/0/0/1/0/1 Lore% 64 Gallery% 71 Achievement% 67 Wizard Run 0 Options --------- Layout 1 ASCII 0 Keyboard 0 Movement Mouse Keybinds 0 Fullscreen 2 Font 24/Cog Map View 50x35 Zoom Use 19% Tactical HUD 1 Map Filters NONE Filters NONE Steam 1 RUN: f849bf73-af24-42bc-ab09-b59d84ceb4c1